{"text_format":"1","workbook":"xlsx","n_sheets":18,"sheets":["PORTADA","MENU","DEFINICIÓN","TASAS","EXENTO","OBLIGACIONES","FUNDO","EJEMPLO","ANEXO1","ANEXO3","ANEXO4","ANEXO5","ANEXO8V","ANEXO9","CLAVEG","PAISO","CODIGO","GENERALES"],"not_rendered":{"charts":0,"images":13,"macros":1,"external_links":2,"defined_names":57,"comments":6,"pivot_tables":0},"unopened":[],"bounds":{"document_bytes":16777216,"sheet_cells":100000,"rows_first":2000,"rows_last":500,"rows_between":2000,"halvings":0,"cell_chars":16384,"cell_head_chars":4096},"cells_cut":0,"cells_raw":0,"read":"whole","date_system":"1900"}

{"sheet":"PORTADA","index":0,"n_rows":0,"n_cols":0,"rows_kept":0,"cut":false,"hidden":false,"merged":[]}

{"sheet":"MENU","index":1,"n_rows":19,"n_cols":3,"rows_kept":19,"cut":false,"hidden":false,"merged":[]}
[]
[]
[]
[]
[null,"Descripción","Nombre de la hoja"]
[null,"Definiciones artículo 3° LIEPS","DEFINICION"]
[null,"Tasas de impuestos","TASAS"]
[null,"Actividades exentas","EXENTO"]
[null,"Declaraciones informativas","OBLIGACIONES"]
[null,"Fundamentos obligaciones MULTI-IEPS","FUNDO"]
[null,"Ejemplo IEPS","EJEMPLO"]
[null,"Formato anexo 1","ANEXO 1"]
[null,"Formato anexo 3","ANEXO3"]
[null,"Formato anexo 4","ANEXO4"]
[null,"Formato anexo 5","ANEXO5"]
[null,"Formato entidad federativa ANEXO 8","ANEXO8V"]
[null,"Formato anexo 9","ANEXO 9"]
[null,"Claves de productos MULTI-IEPS","CLAVEG"]
[null,"Claves de país MULTI-IEPS","PAISO"]

{"sheet":"DEFINICIÓN","index":2,"n_rows":64,"n_cols":5,"rows_kept":64,"cut":false,"hidden":false,"merged":[[2,1,2,4],[3,1,3,4]]}
[]
[]
[null,"Ley del Impuesto Especial sobre Producción y Servicios (LIEPS)"]
[null,"Artículo 3° - Fracciones XXII a XXXIX (Combustibles Fósiles, Alimentos Calóricos, Establecimientos y Videojuegos)"]
[]
[null,"Fracción","Concepto Principal","Subclasificación","Descripción / Especificaciones Legales"]
[null,"I","Bebidas con contenido alcohólico, las bebidas alcohólicas y las bebidas refrescantes","a) Bebidas alcohólicas","Las que a la temperatura de 15° centígrados tengan una graduación alcohólica de más de 3°G.L., hasta 55°G.L., incluyendo el aguardiente y a los concentrados de bebidas alcohólicas aun cuando tengan una graduación alcohólica mayor."]
[null,"I","Bebidas con contenido alcohólico, las bebidas alcohólicas y las bebidas refrescantes","b) Bebidas refrescantes","Las elaboradas con un mínimo de 50% a base de vino de mesa, producto de la fermentación natural de frutas, pudiéndose adicionar agua, bióxido de carbono o agua carbonatada, jugo de frutas, extracto de frutas, aceites esenciales, ácido cítrico, azúcar, ácido benzoico o ácido sórbico o sus sales como conservadores, así como aquéllas que se elaboran de destilados alcohólicos diversos de los antes señalados."]
[null,"II","Cerveza","N/A","La bebida fermentada, elaborada con malta de cebada, lúpulo, levadura y agua o con infusiones de cualquier semilla farinácea procedente de gramíneas o leguminosas, raíces o frutos feculentos o azúcares como adjuntos de la malta, con adición de lúpulo o sucedáneos de éste."]
[null,"III","Bebidas alcohólicas a granel","N/A","Las que se encuentren envasadas en recipientes cuya capacidad exceda a 5,000 mililitros."]
[null,"IV","Marbete","N/A","El signo distintivo de control fiscal y sanitario que puede ser físico y se adhiere a los envases que contengan bebidas alcohólicas, o bien, electrónico que se imprime del folio autorizado y entregado por el Servicio de Administración Tributaria en las etiquetas o contraetiquetas de los referidos envases, en ambos casos con capacidad que no exceda de 5,000 mililitros.\n\n(Fracción reformada DOF 01-12-2004, 23-12-2005, 12-11-2021)"]
[null,"V","Precinto","N/A","El signo distintivo de control fiscal y sanitario, que se adhiere a los recipientes que contengan bebidas alcohólicas con capacidad que exceda a 5,000 mililitros."]
[null,"VI","Alcohol","N/A","La solución acuosa de etanol con las impurezas que la acompañan, con graduación mayor de 55°G.L., a una temperatura de 15°C. No queda comprendido el etanol para uso automotriz.\n\n(Fracción reformada DOF 18-11-2015)"]
[null,"VII","Alcohol desnaturalizado","N/A","La solución acuosa de etanol con las impurezas que la acompañan, con una graduación mayor de 55°G.L., a una temperatura de 15°C, con la adición de las sustancias desnaturalizantes autorizadas por la Secretaría de Salud. No queda comprendido el etanol para uso automotriz.\n\n(Fracción reformada DOF 18-11-2015)"]
[null,"VIII","Tabacos labrados y otros","a) Cigarros","Los cigarros con o sin filtro, elaborados con mezcla de tabacos rubios o de tabacos obscuros, envueltos con papel o cualquier otra sustancia que no contenga tabaco.\n\n(Párrafo reformado DOF 07-11-2025)"]
[null,"VIII","Tabacos labrados y otros","b) Puros","Los tabacos labrados confeccionados y enrollados al 100% con hojas de tabaco o cualquier otra sustancia que contenga tabaco."]
[null,"VIII","Tabacos labrados y otros","c) Otros tabacos labrados","Los que no están comprendidos en los incisos anteriores. Se consideran tabacos labrados, entre otros, a los tabacos cernidos, picados, de hebra, de mascar, así como al rapé."]
[null,"VIII","Tabacos labrados y otros","d) Otros productos que contengan nicotina","Los que contengan nicotina ya sea natural o artificial, cualquiera que sea su presentación, independientemente de que pudieran contener otras sustancias en su elaboración, que no contengan tabaco cortado, molido, en polvo o en hoja y no estén diseñados para calentarse o quemarse."]
[null,"IX","Combustibles automotrices y sus definiciones","a) Combustibles automotrices","Gasolinas, diésel, combustibles no fósiles o la mezcla de cualquiera de los combustibles mencionados.\n\n(Fracción reformada DOF 11-12-2013, 18-11-2015, 09-12-2019)"]
[null,"IX","Combustibles automotrices y sus definiciones","b) Gasolina","Combustible líquido que se puede obtener del proceso de refinación del petróleo crudo o mediante procesos alternativos que pueden utilizar como insumo materias primas que tuvieron su origen en el petróleo formado por la mezcla de hidrocarburos líquidos volátiles, principalmente parafinas ramificadas, aromáticos, naftenos y olefinas, pudiendo contener otros compuestos provenientes de otras fuentes, que se clasifica en función del número de octano."]
[null,"IX","Combustibles automotrices y sus definiciones","c) Diésel","Combustible líquido que puede obtenerse del proceso de refinación del petróleo crudo o mediante procesos alternativos que pueden utilizar como insumo materias primas que tuvieron su origen en el petróleo, formado por la mezcla compleja de hidrocarburos, principalmente parafinas no ramificadas, pudiendo contener otros compuestos provenientes de otras fuentes, con independencia del uso al que se destine."]
[null,"IX","Combustibles automotrices y sus definiciones","d) Combustibles no fósiles","Combustibles o componentes de combustibles que no se obtienen o derivan de un proceso de destilación de petróleo crudo o del procesamiento de gas natural."]
[null,"X","Etanol para uso automotriz","N/A","Alcohol tipo etanol anhidro con contenido de agua menor o igual a 1 por ciento y que cumpla con las especificaciones de calidad y características como biocombustible puro, que emita la autoridad competente.\n\n(Fracción reformada DOF 11-12-2013, 18-11-2015, 09-12-2019)"]
[null,"XI","(Se deroga)","N/A","(Fracción derogada DOF 30-12-2002. Adicionada DOF 23-12-2005. Derogada DOF 09-12-2019)"]
[null,"XII","Contraprestación","N/A","El precio pactado, adicionado con las cantidades que además se carguen o cobren al adquirente del bien o al prestatario del servicio por intereses normales o moratorios, penas convencionales o cualquier otro concepto distinto de impuestos. A falta de precio pactado o cuando éste se determine en cantidad 'cero' se estará al valor que los bienes o servicios tengan en el mercado, o en su defecto al de avalúo.\n\nTambién forman parte de la contraprestación los anticipos o depósitos que reciba el enajenante o el prestador del servicio antes de entregar el bien o prestar el servicio, cualquiera que sea el nombre que se dé a dichos anticipos o depósitos.\n\nCuando con motivo de la enajenación de bienes sujetos al pago de este impuesto se convenga además del precio por dicha enajenación el pago de cantidades adicionales al mismo por concepto de publicidad o cualquier otro, que en su defecto se hubieran tenido que realizar por parte del enajenante, dichas erogaciones formarán parte del valor o precio pactado. (Párrafo reformado DOF 31-12-2003, 18-11-2015)\n\nTratándose de enajenaciones se considerará que forma parte de la contraprestación, además de lo señalado en los párrafos anteriores, las cantidades que se carguen o cobren al adquirente del bien por concepto de envases y empaques, no retornables, necesarios para contener los bienes que se enajenan.\n\nCuando la contraprestación que reciba el contribuyente por la enajenación de bienes o la prestación de servicios no sea en dinero, sino total o parcialmente en otros bienes o servicios, se considerará como valor de éstos el de mercado o, en su defecto, el de avalúo. Los mismos valores se tomarán en cuenta en caso de donación, cuando por ella se deba pagar el impuesto establecido en esta Ley.\n\nEn las permutas y pagos en especie, el impuesto especial sobre producción y servicios se deberá pagar por cada bien cuya propiedad se transmita o por cada servicio que se preste."]
[null,"XIII","Mieles incristalizables","N/A","El producto residual de la fabricación de azúcar, cuando referido a 85° brix a 20° centígrados, los azúcares fermentables expresados en glucosa no excedan del 61%."]
[null,"XIV","Red pública de telecomunicaciones","N/A","La red de telecomunicaciones a través de la cual se explotan comercialmente servicios de telecomunicaciones. La red no comprende los equipos terminales de telecomunicaciones de los usuarios ni las redes de telecomunicaciones que se encuentren más allá del punto de conexión terminal.\n\n(Fracción reformada DOF 30-12-2002. Derogada DOF 31-12-2003. Adicionada DOF 27-11-2009)"]
[null,"XV","Red de telecomunicaciones","N/A","El sistema integrado por medios de transmisión, tales como canales o circuitos que utilicen bandas de frecuencias del espectro radioeléctrico, enlaces satelitales, cableados, redes de transmisión eléctrica o cualquier otro medio de transmisión, así como, en su caso, centrales, dispositivos de conmutación o cualquier equipo necesario.\n\n(Fracción reformada DOF 30-12-2002, 31-12-2003. Derogada DOF 27-12-2006. Adicionada DOF 27-11-2009)"]
[null,"XVI","Equipo terminal de telecomunicaciones","N/A","Comprende todo el equipo de telecomunicaciones de los usuarios que se conecte más allá del punto de conexión terminal de una red pública con el propósito de tener acceso a uno o más servicios de telecomunicaciones.\n\n(Fracción reformada DOF 30-12-2002. Derogada DOF 27-12-2006. Adicionada DOF 27-11-2009)"]
[null,"XVII","Bebidas energetizantes","N/A","Las bebidas no alcohólicas adicionadas con la mezcla de cafeína y taurina o glucoronolactona o tiamina y/o cualquier otra sustancia que produzca efectos estimulantes similares. (Párrafo reformado DOF 09-12-2019)\n\nSe consideran concentrados, polvos y jarabes para preparar bebidas energetizantes, aquéllos que por dilución permiten obtener bebidas energetizantes con las características señaladas en el párrafo anterior.\n\n(Fracción adicionada DOF 19-11-2010)"]
[null,"XVIII","Bebidas saborizadas","N/A","Las bebidas no alcohólicas elaboradas por la disolución en agua de cualquier tipo de azúcares o edulcorantes y que pueden incluir ingredientes adicionales tales como saborizantes naturales, artificiales o sintéticos, adicionados o no, de jugo, pulpa o néctar, de frutas o de verduras o de legumbres, de sus concentrados o extractos y otros aditivos para alimentos, y que pueden estar o no carbonatadas.\n\n(Fracción adicionada DOF 11-12-2013. Reformada DOF 07-11-2025)"]
[null,"XIX","Concentrados, polvos y jarabes","N/A","Esencias o extractos de sabores, que permitan obtener bebidas saborizadas, a los productos con o sin edulcorantes o saboreadores, naturales, artificiales o sintéticos, adicionados o no, de jugo, pulpa o néctar, de frutas, de verduras o legumbres y otros aditivos para alimentos.\n\n(Fracción adicionada DOF 11-12-2013)"]
[null,"XX","Azúcares","N/A","A los monosacáridos, disacáridos y polisacáridos, siempre que en este último caso se utilicen como edulcorantes con aporte calórico.\n\n(Fracción adicionada DOF 11-12-2013)"]
[null,"XX BIS","Edulcorante","N/A","Sustancia natural o artificial que se adiciona a las bebidas para impartir un sabor dulce a los productos, diferentes de los azúcares a que se refiere la fracción XX de este artículo.\n\n(Fracción adicionada DOF 07-11-2025)"]
[null,"XXI","Suero oral","N/A","La preparación en agua que exclusivamente contenga todas y cada una de las siguientes substancias: glucosa anhidra, cloruro de potasio, cloruro de sodio y citrato trisódico."]
[null,"XXII","Combustibles fósiles","a) Gas Natural","Hidrocarburo que se presenta como una mezcla de gases, constituida principalmente por metano, pero que comúnmente puede contener otros alcanos y otros gases como nitrógeno, ácido sulfhídrico, helio y mercaptanos.\n\n(Fracción adicionada DOF 11-12-2013)"]
[null,"XXII","Combustibles fósiles","b) Propano","Gas incoloro e inodoro, perteneciente a los hidrocarburos alifáticos con enlaces simples de tres carbonos."]
[null,"XXII","Combustibles fósiles","c) Butano","También conocido como n-butano, hidrocarburo saturado, parafínico o alifático, inflamable que se presenta comúnmente en estado gaseoso, incoloro e inodoro, compuesto por cuatro átomos de carbono y por diez de hidrógeno."]
[null,"XXII","Combustibles fósiles","d) Gasolina","El producto definido conforme a lo dispuesto en la fracción IX, inciso b) de este artículo.\n\n(Inciso reformado DOF 18-11-2015, 09-12-2019)"]
[null,"XXII","Combustibles fósiles","e) Gasavión","Alquilado o gasolina de alto octanaje, de alta volatilidad y estabilidad y de un bajo punto de congelación, con contenido de tetraetilo de plomo utilizado en aeronaves equipadas con motores de combustión interna."]
[null,"XXII","Combustibles fósiles","f) Turbosina y kerosenos","Combustibles líquidos e incoloros insolubles en agua, que se obtienen del proceso de refinación del petróleo crudo al fraccionarse típicamente a temperaturas entre los 157° y los 233° Celsius, utilizados principalmente como combustibles para aviones de retropropulsión, en los motores a reacción y de turbina de gas."]
[null,"XXII","Combustibles fósiles","g) Diésel","El producto definido conforme a lo dispuesto en la fracción IX, inciso c) de este artículo.\n\n(Inciso reformado DOF 18-11-2015, 09-12-2019)"]
[null,"XXII","Combustibles fósiles","h) Combustóleo","También llamado fuel oil, combustible más pesado de los que se puede destilar a presión atmosférica, es una fracción del petróleo que se obtiene como residuo de la destilación fraccionada a temperaturas típicamente por encima de los 426° Celsius, está compuesto por moléculas con más de 20 átomos de carbono, y su color es negro, se usa como combustible para plantas de energía eléctrica, calderas y hornos."]
[null,"XXII","Combustibles fósiles","i) Coque de Petróleo","Combustible sólido carbonoso formado por la coquización del petróleo crudo procesado en refinerías o en procesos de craqueo."]
[null,"XXII","Combustibles fósiles","j) Coque de Carbón","Combustible sólido carbonoso formado por la destilación de carbón bituminoso calentado a temperaturas de 500° a 1,100° Celsius sin contacto con el aire."]
[null,"XXII","Combustibles fósiles","k) Carbón Mineral","Roca sedimentaria utilizada como combustible sólido, compuesto principalmente por carbono y otros elementos en cantidades variables como hidrógeno, azufre, oxígeno y nitrógeno."]
[null,"XXII","Combustibles fósiles","l) Otros combustibles fósiles","Cualquier otro derivado del petróleo, carbón mineral o gas natural que se destinen a un proceso de combustión y que no estén listados en los incisos anteriores."]
[null,"XXIII","Plaguicida","N/A","Cualquier substancia o mezcla de substancias que se destina a controlar cualquier plaga, incluidos los vectores que transmiten las enfermedades humanas y de animales, las especies no deseadas que causen perjuicio o que interfieran con la producción agropecuaria y forestal, así como las substancias defoliantes y las desecantes.\n\n(Fracción adicionada DOF 11-12-2013)"]
[null,"XXIV","Bonos de carbono","N/A","Son un instrumento económico contemplado en el Protocolo de Kioto y avalados por la Organización de las Naciones Unidas dentro de la Convención Marco de las Naciones Unidas sobre el Cambio Climático y cada bono de carbono equivale a una tonelada de bióxido de carbono equivalente (ton CO2 eq.), que ha sido dejada de emitir a la atmósfera.\n\n(Fracción adicionada DOF 11-12-2013)"]
[null,"XXV","Densidad calórica","N/A","A la cantidad de energía, expresada en kilocalorías por cada 100 gramos de alimento, que se obtiene al multiplicar las kilocalorías que contiene el alimento por cien y el resultado dividirlo entre los gramos de la porción de que se trate.\n\n(Fracción adicionada DOF 11-12-2013)"]
[null,"XXVI","Botanas","N/A","Los productos elaborados a base de harinas, semillas, tubérculos, cereales, granos y frutas sanos y limpios que pueden estar fritos, horneados y explotados o tostados y adicionados de sal, otros ingredientes y aditivos para alimentos, así como las semillas para botanas, que son la parte del fruto comestible de las plantas o árboles, limpia, sana, con o sin cáscara o cutícula, frita, tostada u horneada, adicionada o no de otros ingredientes o aditivos para alimentos.\n\n(Fracción adicionada DOF 11-12-2013)"]
[null,"XXVII","Productos de confitería","N/A","Los dulces y confites. Quedan comprendidos los caramelos, el dulce imitación de mazapán, gelatina o grenetina, gelatina preparada o jaletina, malvavisco, mazapán, peladilla, turrón, entre otros.\n\n(Fracción adicionada DOF 11-12-2013)"]
[null,"XXVIII","Chocolate","N/A","Al producto obtenido por la mezcla homogénea de cantidades variables de pasta de cacao, o manteca de cacao, o cocoa con azúcares u otros edulcorantes, ingredientes opcionales y aditivos para alimentos, cualquiera que sea su presentación.\n\n(Fracción adicionada DOF 11-12-2013)"]
[null,"XXIX","Derivados del cacao","N/A","La manteca de cacao, pasta o licor de cacao, torta de cacao, entre otros.\n\n(Fracción adicionada DOF 11-12-2013)"]
[null,"XXX","Flan","N/A","Dulce que se hace con yemas de huevo, leche y azúcar, y se cuaja a baño María, dentro de un molde generalmente bañado de azúcar tostada. Suele llevar también harina, y con frecuencia se le añade algún otro ingrediente, como café, naranja, vainilla, entre otros.\n\n(Fracción adicionada DOF 11-12-2013)"]
[null,"XXXI","Pudín","N/A","Dulce que se prepara con bizcocho o pan deshecho en leche y con azúcar y frutas secas.\n\n(Fracción adicionada DOF 11-12-2013)"]
[null,"XXXII","Dulces de frutas y de hortalizas","N/A","A los productos tales como ates, jaleas o mermeladas, obtenidos por la cocción de pulpas o jugos de frutas u hortalizas con edulcorantes, adicionados o no de aditivos para alimentos. Comprende las frutas y hortalizas cristalizadas o congeladas.\n\n(Fracción adicionada DOF 11-12-2013)"]
[null,"XXXIII","Crema de cacahuate o avellanas","N/A","La pasta elaborada de cacahuates o avellanas, tostados y molidos, generalmente salada o endulzada.\n\n(Fracción adicionada DOF 11-12-2013)"]
[null,"XXXIV","Dulces de leche","N/A","Comprende, entre otros, la cajeta, el jamoncillo y natillas.\n\n(Fracción adicionada DOF 11-12-2013)"]
[null,"XXXV","Alimentos preparados a base de cereales","N/A","Comprende todo tipo de alimento preparado a base de cereales, ya sea en hojuelas, aglomerados o anillos de cereal, pudiendo o no estar añadidos con frutas o saborizantes.\n\n(Fracción adicionada DOF 11-12-2013)"]
[null,"XXXVI","Helados","N/A","Al alimento elaborado mediante la congelación, con agitación de una mezcla pasteurizada compuesta por una combinación de ingredientes lácteos, que puede contener grasas vegetales permitidas, frutas, huevo, sus derivados y aditivos para alimentos.\n\n(Fracción adicionada DOF 11-12-2013)"]
[null,"XXXVII","Establecimientos de consumo final","N/A","A las cantinas, bares, cervecerías, centros nocturnos, cabarets, restaurantes, hoteles, centros sociales, discotecas, loncherías, fondas, kermeses, ferias, espectáculos, bailes públicos, salones, banquetes, casinos, y todos aquellos en los que se realice la apertura de bebidas alcohólicas para su venta y consumo final.\n\n(Fracción adicionada DOF 12-11-2021)"]
[null,"XXXVIII","Videojuego con contenido violento, extremo o para adulto","N/A","No apto para personas menores de 18 años, aquellos que se clasifiquen como tales por contener violencia intensa o escenas prolongadas de violencia intensa, derramamiento de sangre, contenido sexual o contenido sexual gráfico, lenguaje fuerte o apuestas con moneda real.\n\n(Fracción adicionada DOF 07-11-2025)"]
[null,"XXXIX","Contenido adicional dentro del videojuego","N/A","Todo contenido digital que complementa el videojuego por el que se paga una contraprestación, que pudiendo ser descargable o no, se utilice como elemento interactivo dentro del videojuego, como serían productos digitales o promocionales, que permitan mejorar la experiencia del adquirente, entre otros: nuevos escenarios, niveles, personajes, armas o modos de juegos."]

{"sheet":"TASAS","index":3,"n_rows":52,"n_cols":6,"rows_kept":52,"cut":false,"hidden":false,"merged":[[2,1,2,5],[3,1,3,5]]}
[]
[]
[null,"Ley del Impuesto Especial sobre Producción y Servicios (LIEPS)"]
[null,"Artículo 2° - Fracción I, Incisos A), B) y C) (Bebidas Alcohólicas, Cerveza, Alcohol y Tabacos)"]
[]
[null,"Fracción","Inciso / Concepto","Numeral / Subconcepto","Tasa / Cuota","Especificaciones y Reglas Aplicables"]
[null,"I","A) Bebidas con contenido alcohólico y cerveza","1. Con una graduación alcohólica de hasta 14° G.L.","26.5%","Tasa ad valorem.\n\n"]
[null,"I","A) Bebidas con contenido alcohólico y cerveza","2. Con una graduación alcohólica de más de 14° y hasta 20°G.L.","30%","Tasa ad valorem.\n\n"]
[null,"I","A) Bebidas con contenido alcohólico y cerveza","3. Con una graduación alcohólica de más de 20°G.L.","53%","Tasa ad valorem.\n\n"]
[null,"I","B) Alcohol, alcohol desnaturalizado y mieles incristalizables","N/A","50%","Tasa ad valorem.\n"]
[null,"I","C) Tabacos labrados y otros","1. Cigarros","200%","Tasa ad valorem.\n\n"]
[null,"I","C) Tabacos labrados y otros","2. Puros y otros tabacos labrados","200%","Tasa ad valorem."]
[null,"I","C) Tabacos labrados y otros","3. Puros y otros tabacos labrados hechos enteramente a mano","32%","Tasa ad valorem."]
[null,"I","C) Tabacos labrados y otros","4. Otros productos que contengan nicotina","100%","Tasa ad valorem."]
[null,"I","C) Tabacos labrados y otros (Cuota Adicional Específica)","Cuota específica aplicable a Cigarros","$1.1584 por cigarro","Adicionalmente a las tasas establecidas, se pagará esta cuota por cigarro enajenado o importado.\n\nEspecificaciones legales:\n- Peso equivalente: 1 cigarro = 0.75 gramos de tabaco (incluyendo otras sustancias mezcladas).\n- Contenido de nicotina: 1 cigarro = 8 miligramos de nicotina."]
[null,"I","C) Tabacos labrados y otros (Cuota Adicional Específica)","Mecanismo para otros tabacos y productos con nicotina","Cuota proporcional según fórmula legal","Reglas de aplicación de la cuota para otros productos:\n1. Otros tabacos labrados (excepto puros hechos a mano): Se aplica la cuota de $1.1584 al resultado de dividir el peso total en gramos entre 0.75 (incluyendo sustancias mezcladas, excluyendo filtro y papel/envoltura sin tabaco).\n2. Otros productos con nicotina: Se aplica la cuota de $1.1584 al resultado de dividir el contenido total de nicotina (en mg) entre 8, sin considerar sustancias sin nicotina."]
[null,"I","C) Tabacos labrados y otros (Cuota Adicional Específica)","Regla de Actualización Anual de la Cuota","Factor de actualización anual (CFF Art. 17-A)","La cuota se actualizará anualmente a partir del 1 de enero con el factor de actualización correspondiente al periodo desde diciembre del penúltimo año hasta diciembre del inmediato anterior.\n\nSHCP publicará en el DOF en diciembre el factor y la cuota actualizada expresada hasta el diezmilésimo."]
[null,"I","D) Combustibles automotrices","1. Combustibles fósiles: a) Gasolina menor a 91 octanos","$6.7001","Pesos por litro"]
[null,"I","D) Combustibles automotrices","1. Combustibles fósiles: b) Gasolina mayor o igual a 91 octanos","$5.6579","Pesos por litro"]
[null,"I","D) Combustibles automotrices","1. Combustibles fósiles: c) Diésel","$7.3634","Pesos por litro"]
[null,"I","D) Combustibles automotrices","2. Combustibles no fósiles","$5.6579","Pesos por litro"]
[null,"I","D) Combustibles automotrices (Reglas)","Aplica a todas las categorías del Inciso D)","N/A","N/A"]
[null,"I","E) (Se deroga)","N/A","Derogado","N/A"]
[null,"I","F) Bebidas energetizantes","Bebidas energetizantes, concentrados, polvos y jarabes para su preparación","25%","Tasa ad valorem"]
[null,"I","G) Bebidas saborizadas","Bebidas saborizadas (con azúcares añadidos)","$3.0818","Pesos por litro"]
[null,"I","G) Bebidas saborizadas","Bebidas saborizadas (con edulcorantes añadidos)","$1.5000","Pesos por litro"]
[null,"I","G) Bebidas saborizadas (Reglas)","Regla de actualización anual","N/A","N/A"]
[null,"I","H) Combustibles Fósiles","1. Propano","10.1248","Centavos por litro"]
[null,"I","H) Combustibles Fósiles","2. Butano","13.1025","Centavos por litro"]
[null,"I","H) Combustibles Fósiles","3. Gasolinas y gasavión","17.7591","Centavos por litro"]
[null,"I","H) Combustibles Fósiles","4. Turbosina y otros kerosenos","21.2108","Centavos por litro"]
[null,"I","H) Combustibles Fósiles","5. Diésel","21.5491","Centavos por litro"]
[null,"I","H) Combustibles Fósiles","6. Combustóleo","22.9975","Centavos por litro"]
[null,"I","H) Combustibles Fósiles","7. Coque de petróleo","26.6930","Pesos por tonelada"]
[null,"I","H) Combustibles Fósiles","8. Coque de carbón","62.5771","Pesos por tonelada"]
[null,"I","H) Combustibles Fósiles","9. Carbón mineral","47.1189","Pesos por tonelada"]
[null,"I","H) Combustibles Fósiles","10. Otros combustibles fósiles","68.1134","Pesos por tonelada de carbono"]
[null,"I","H) Combustibles Fósiles (Reglas)","Aplica a todas las categorías del Inciso H)","N/A","N/A"]
[null,"I","I) Plaguicidas","Categorías 1 y 2","9%","Tasa ad valorem conforme a la categoría de peligro de toxicidad aguda. Sujeta a la NOM-232-SSA1-2009 (DOF 13-04-2010)."]
[null,"I","I) Plaguicidas","Categoría 3","7%","Tasa ad valorem conforme a la categoría de peligro de toxicidad aguda. Sujeta a la NOM-232-SSA1-2009."]
[null,"I","I) Plaguicidas","Categoría 4","6%","Tasa ad valorem conforme a la categoría de peligro de toxicidad aguda. Sujeta a la NOM-232-SSA1-2009."]
[null,"I","I) Plaguicidas","Categoría 5 / Sin Clasificación","0%","No gravado según el tabulador por categorías de peligro de toxicidad aguda."]
[null,"I","J) Alimentos no básicos con alta densidad calórica","1. Botanas","8%","Aplica si la densidad calórica es de 275 kcal o mayor por cada 100 gramos.\n\nReglas de Etiquetado:\n- Se pueden tomar en cuenta las kcal manifestadas en la etiqueta oficial.\n- Sin etiqueta: Se presume (salvo prueba en contrario) densidad calórica >= 275 kcal/100g.\n- Exenciones: El SAT emitirá reglas generales para excluir alimentos de consumo básico por su importancia nutricional.\n\n(Inciso adicionado DOF 11-12-2013)"]
[null,"I","J) Alimentos no básicos con alta densidad calórica","2. Productos de confitería","8%","Aplica a densidad calórica >= 275 kcal / 100 g."]
[null,"I","J) Alimentos no básicos con alta densidad calórica","3. Chocolate y derivados del cacao","8%","Aplica a densidad calórica >= 275 kcal / 100 g."]
[null,"I","J) Alimentos no básicos con alta densidad calórica","4. Flanes y pudines","8%","Aplica a densidad calórica >= 275 kcal / 100 g."]
[null,"I","J) Alimentos no básicos con alta densidad calórica","5. Dulces de frutas y hortalizas","8%","Aplica a densidad calórica >= 275 kcal / 100 g."]
[null,"I","J) Alimentos no básicos con alta densidad calórica","6. Cremas de cacahuate y avellanas","8%","Aplica a densidad calórica >= 275 kcal / 100 g."]
[null,"I","J) Alimentos no básicos con alta densidad calórica","7. Dulces de leche","8%","Aplica a densidad calórica >= 275 kcal / 100 g."]
[null,"I","J) Alimentos no básicos con alta densidad calórica","8. Alimentos preparados a base de cereales","8%","Aplica a densidad calórica >= 275 kcal / 100 g."]
[null,"I","J) Alimentos no básicos con alta densidad calórica","9. Helados, nieves y paletas de hielo","8%","Aplica a densidad calórica >= 275 kcal / 100 g."]
[null,"I","K) Videojuegos con contenido violento, extremo o para adulto","Clasificación no apto para menores de 18 años (formato físico)","8%","Aplica a ventas efectuadas al público en general en formato físico.\n\nExcepción: No será aplicable tratándose de la importación de dichos videojuegos."]

{"sheet":"EXENTO","index":4,"n_rows":18,"n_cols":5,"rows_kept":18,"cut":false,"hidden":false,"merged":[[15,1,15,2],[2,3,2,4],[5,2,9,2],[5,4,9,4],[10,2,13,2],[10,4,13,4]]}
[]
[]
[null,"Exentos",null,"Fundamento"]
[null,"Producto","Condición","Producto","Exención"]
[null,"Aguamiel y productos derivados de su fermentación",null,"Artículo 2 fracción I inciso A)","Artículo 8 fracción I, inciso b)"]
[null,"Tabacos labrados y otros","Las que realicen personas diferentes de los fabricantes, productores o importadores","Artículo 2 fracción I inciso C)","Artículo 8 fracción I, inciso c) En estos casos, las personas distintas de los fabricantes,\nproductores o importadores, no se consideran contribuyentes de este impuesto por dichas\nenajenaciones."]
[null,"Combustibles automotrices",null,"Artículo 2 fracción I inciso D)"]
[null,"Bebidas saborizadas; concentrados, polvos, jarabes, esencias o extractos de sabores, que al diluirse permitan obtener bebidas saborizadas; y jarabes o concentrados para preparar bebidas saborizadas que se expendan en envases abiertos utilizando aparatos automáticos, eléctricos o mecánicos, siempre que los bienes a que se refiere este inciso contengan cualquier tipo de azúcares o edulcorantes añadidos.",null,"Artículo 2 fracción I inciso G)"]
[null,"Combustibles Fósiles",null,"Artículo 2 fracción I inciso H)"]
[null,"Cuota adicional combustibles automotices y fosiles",null,"Artículo 2-A"]
[null,"Cerveza","Que se efectúen al público en general, salvo que el enajenante sea fabricante, productor, envasador, distribuidor o importador de los bienes que enajene. No gozarán del beneficio establecido en este inciso, las enajenaciones de los citados bienes efectuadas por comerciantes que obtengan la mayor parte del importe de sus ingresos de enajenaciones a personas que no forman parte del público en general. No se consideran enajenacionesefectuadas con el público en general cuando por las mismas se expidan comprobantes que cumplan con los requisitos a que se refiere el artículo 29-A del Código Fiscal de la Federación.","Artículo 2 fracción I inciso A)","Artículo 8 fracción I inciso d)"]
[null,"Bebidas refrescantes",null,"Artículo 2 fracción I inciso A)"]
[null,"Puros y otros tabacos labrados",null,"Artículo 2 fracción I inciso C), ver artículo 3o. Fracción VIII"]
[null,"Bebidas energetizantes, así como concentrados, polvos y jarabes para preparar bebidas energetizantes ",null,"Artículo 2 fracción I inciso F)"]
[null,"Alcohol, alcohol desnaturalizado y mieles incristalizables","Presentar las declaraciones informativas del artículo 19","Artículo 2 fracción I inciso B)","Artículo 8 fracción I inciso e)"]
[null,"Las de bebidas saborizadas en restaurantes, bares y otros lugares en donde se proporcionen servicios de alimentos y bebidas, bebidas saborizadas que cuenten con registro sanitario como medicamentos emitido por la autoridad sanitaria, la leche en cualquier presentación, incluyendo la que esté mezclada con grasa vegetal y los sueros orales.",null,"Artículo 2 fracción I inciso G)","Artículo 8 fracción I inciso f)"]
[null,"Plaguicidas","Que conforme a la categoría de peligro de toxicidad aguda correspondan a la categoría 5.","Artículo 2 fracción I inciso I)","Artículo 8 fracción I inciso h)"]
[null,"Petróleo crudo y gas natural",null,null,"Artículo 8 fracción I inciso i)"]

{"sheet":"OBLIGACIONES","index":5,"n_rows":87,"n_cols":7,"rows_kept":87,"cut":false,"hidden":false,"merged":[[85,5,85,6],[7,5,7,6],[11,5,12,5],[11,6,12,6],[19,5,19,6],[29,5,30,6],[31,5,32,5],[31,6,32,6],[39,5,39,6],[49,5,49,6],[59,5,59,6],[67,5,67,6],[76,5,76,6],[9,1,10,1],[22,1,23,1],[22,2,23,2],[22,5,23,5],[22,6,23,6],[9,2,10,2],[9,5,10,5],[9,6,10,6]]}
[]
[]
[null,"Producto","Inciso del artículo 2 fracción I LIEPS"]
[null,"Bebidas con contenido alcohólico y cerveza","A"]
[null,"Obligaciones","Fundamento","Formato MULTI-IEPS","Recomendación ","Infracción","Multa"]
[null,"Declaración trimestral de los contribuyentes que se les traslado el IEPS expresamente y por separado, en caso de vinos de mesa semestral.","Artículo 19 fracción II LIEPS, regla 5.2.1 RMF 2026","Anexo 1","Anexo 1","No proporcionar la información a que se refiere el artículo 19, fracciones II, tercer párrafo, XIII y XV de la Ley del Impuesto Especial sobre Producción y Servicios.\nFundamento: Artículo 81 fracción XVIII CFF.","De $14,380.00 a $23,940.00\n\nFundamento: Artículo 82 fracción XVIII CFF."]
[null,"Declaración trimestral de los 50 principales clientes y proveedores, en caso de vinos de mesa en forma semestral","Artículo 19 fracción VIII LIEPS","Anexo 1","Anexo 1","No presentar la información a que se refieren el 19, fracciones VIII, IX y XII, de la Ley del Impuesto Especial sobre Producción y Servicios, dentro del plazo previsto en dichos preceptos, o no presentarla conforme lo establecen los mismos.\nFundamento: Artículo 81 fracción VIII CFF.","De $96,230.00 a $288,660.00\n\nFundamento: Artículo 82 fracción VIII CFF."]
[null,"Proporcionar a las autoridades fiscales durante el mes de marzo de cada año, la información que corresponda de los bienes que produjeron, enajenaron o importaron en el año inmediato anterior, respecto de su consumo por entidad federativa e impuesto correspondiente, así como de los servicios prestados por establecimiento en cada entidad federativa.","Artículo 19 fracción VI LIEPS, regla 5.2.1 RMF 2026","Anexo 8","Anexo 8","Artículo 91 CFF. La infracción en cualquier forma a las disposiciones fiscales, diversa a las previstas en este Capítulo, se sancionará con multa $490.00 a $4,640.00"]
[null,"Los fabricantes, productores o envasadores, deberán llevar un control físico del volumen fabricado, producido o envasado, según corresponda, así como reportar trimestralmente, en los meses de abril, julio, octubre y enero, del año que corresponda, la lectura mensual de los registros de cada uno de los dispositivos que se utilicen para llevar el citado control, en el trimestre inmediato anterior al de su declaración.\n\nNo aplica a los productores de vinos de mesa","Artículo 19 fracción X LIEPS, regla 5.2.1 RMF 2026","Anexo 9",null,"No proporcionar la información a que se refiere el artículo 19, fracciones X y XVI de la Ley del Impuesto Especial sobre Producción y Servicios.\n\nFundamento: Artículo 81 fracción XIX CFF.","De $23,940.00 a $47,930.00\n\nFundamento: Artículo 82 fracción XIX CFF."]
[null,"Los fabricantes, productores y envasadores, de alcohol, alcohol desnaturalizado, mieles incristalizables y de bebidas alcohólicas, deberán reportar en el mes de enero de cada año, al Servicio de Administración Tributaria, las características de los equipos que utilizarán para la producción, destilación, envasamiento y almacenaje de dichos bienes, así como de los contenedores para el almacenaje de dichos bienes cuando no se trate de equipo.\n \nAsimismo, deberán reportar a dicha dependencia la fecha de inicio del proceso de producción, destilación o envasamiento, con quince días de anticipación al mismo, acompañando la información sobre las existencias de producto en ese momento. Igualmente, deberán reportar la fecha en que finalice el proceso, dentro de los quince días siguientes a la conclusión del mismo, acompañando la información sobre el volumen fabricado, producido o envasado.\n\nEn el caso de que se adquieran o se incorporen nuevos equipos de destilación o envasamiento, se modifiquen los instalados o se enajenen los reportados por el contribuyente, se deberá presentar aviso ante las autoridades fiscales dentro de los 15 días siguientes a que esto ocurra.","Artículo 19 fracción XII LIEPS, regla 5.2.1 RMF 2026","Anexo 3 Equipos",null,"No presentar la información a que se refieren el 19, fracciones VIII, IX y XII, de la Ley del Impuesto Especial sobre Producción y Servicios, dentro del plazo previsto en dichos preceptos, o no presentarla conforme lo establecen los mismos.\nFundamento: Artículo 81 fracción VIII CFF.","De $96,230.00 a $288,660.00\n\nFundamento: Artículo 82 fracción VIII CFF."]
[null,null,null,"Anexto 4 Proceso de producción, destilación o envasamiento"]
[null,"Declaración trimestral del precio de enajenación de cada producto, valor y volumen de los mismos, en caso de vinos de mesa es semestral","Artículo 19 fracción XIII LIEPS, regla 5.2.1 RMF 2026","Anexo 1","Anexo 1","No proporcionar la información a que se refiere el artículo 19, fracciones II, tercer párrafo, XIII y XV de la Ley del Impuesto Especial sobre Producción y Servicios.\n\nFundamento: Artículo 81 fracción XVIII CFF.","De $12,700.00 a $21,150.00\n\nFundamento: Artículo 82 fracción XVIII CFF."]
[null,"Reporte trimestral de los marbes y precintos obtenidos, utilizados, destruidos, e inutilizados durante el trimestre inmediato anterior.","Artículo 19 fracción XV LIEPS, regla 5.2.1 RMF 2026","Página del SAT marbes y precintos"]
[null,"Los productores o envasadores de los bienes a que se refiere el numeral 3 (bebidas alcoholicas con graduación alcohólica mayor a 20° G.L.) del inciso A) de la fracción I del artículo 2o. de esta Ley, estarán obligados a llevar un control volumétrico de producción y presentar a la Secretaría de Hacienda y Crédito Público, trimestralmente, en los meses de abril, julio, octubre y enero, del año que corresponda, un informe que contenga el número de litros producidos de conformidad con el citado control, del trimestre inmediato anterior a la fecha en que se informa.","Artículo 19 fracción XVI LIEPS, regla 5.2.1 RMF 2026","Anexo 9",null,"No proporcionar la información a que se refiere el artículo 19, fracciones X y XVI de la Ley del Impuesto Especial sobre Producción y Servicios.\n\nFundamento: Artículo 81 fracción XIX CFF.","De $23,940.00 a $47,930.00\n\nFundamento: Artículo 82 fracción XIX CFF."]
[]
[]
[null,"Producto","Inciso del artículo 2 fracción I LIEPS"]
[null,"Alcohol, alcohol desnaturalizado y mieles incristalizables","B"]
[null,"Obligaciones","Fundamento","Formato MULTI-IEPS","Recomendación "]
[null,"Proporcionar a las autoridades fiscales durante el mes de marzo de cada año, la información que corresponda de los bienes que produjeron, enajenaron o importaron en el año inmediato anterior, respecto de su consumo por entidad federativa e impuesto correspondiente, así como de los servicios prestados por establecimiento en cada entidad federativa.","Artículo 19 fracción VI LIEPS, regla 5.2.1 RMF 2026","Anexo 8",null,"Artículo 91 CFF. La infracción en cualquier forma a las disposiciones fiscales, diversa a las previstas en este Capítulo, se sancionará con multa $490.00 a $4,640.00"]
[null,"Declaración trimestral de los 50 principales clientes y proveedores.","Artículo 19 fracción VIII LIEPS","Anexo 1","Anexo 1","No presentar la información a que se refieren el 19, fracciones VIII, IX y XII, de la Ley del Impuesto Especial sobre Producción y Servicios, dentro del plazo previsto en dichos preceptos, o no presentarla conforme lo establecen los mismos.\nFundamento: Artículo 81 fracción VIII CFF.","De $96,230.00 a $288,660.00\n\nFundamento: Artículo 82 fracción VIII CFF."]
[null,"Los fabricantes, productores o envasadores, deberán llevar un control físico del volumen fabricado, producido o envasado, según corresponda, así como reportar trimestralmente, en los meses de abril, julio, octubre y enero, del año que corresponda, la lectura mensual de los registros de cada uno de los dispositivos que se utilicen para llevar el citado control, en el trimestre inmediato anterior al de su declaración.","Artículo 19 fracción X LIEPS, regla 5.2.1 RMF 2026","Anexo 9",null,"No proporcionar la información a que se refiere el artículo 19, fracciones X y XVI de la Ley del Impuesto Especial sobre Producción y Servicios.\n\nFundamento: Artículo 81 fracción XIX CFF.","De $23,940.00 a $47,930.00\n\nFundamento: Artículo 82 fracción XIX CFF."]
[null,"Los fabricantes, productores y envasadores, de alcohol, alcohol desnaturalizado, mieles incristalizables y de bebidas alcohólicas, deberán reportar en el mes de enero de cada año, al Servicio de Administración Tributaria, las características de los equipos que utilizarán para la producción, destilación, envasamiento y almacenaje de dichos bienes, así como de los contenedores para el almacenaje de dichos bienes cuando no se trate de equipo.\n \nAsimismo, deberán reportar a dicha dependencia la fecha de inicio del proceso de producción, destilación o envasamiento, con quince días de anticipación al mismo, acompañando la información sobre las existencias de producto en ese momento. Igualmente, deberán reportar la fecha en que finalice el proceso, dentro de los quince días siguientes a la conclusión del mismo, acompañando la información sobre el volumen fabricado, producido o envasado.\n\nEn el caso de que se adquieran o se incorporen nuevos equipos de destilación o envasamiento, se modifiquen los instalados o se enajenen los reportados por el contribuyente, se deberá presentar aviso ante las autoridades fiscales dentro de los 15 días siguientes a que esto ocurra.","Artículo 19 fracción XII LIEPS, regla 5.2.1 RMF 2026","Anexo 3 Equipos",null,"No presentar la información a que se refieren el 19, fracciones VIII, IX y XII, de la Ley del Impuesto Especial sobre Producción y Servicios, dentro del plazo previsto en dichos preceptos, o no presentarla conforme lo establecen los mismos.\nFundamento: Artículo 81 fracción VIII CFF.","De $85,000.00 a $254,980.00.\n\nFundamento: Artículo 82 fracción VIII CFF."]
[null,null,null,"Anexto 4 Proceso de producción, destilación o envasamiento"]
[]
[]
[null,"Producto","Inciso del artículo 2 fracción I LIEPS"]
[null,"Tabacos labrados","C"]
[null,"Obligaciones","Fundamento","Formato MULTI-IEPS","Recomendación "]
[null,"Los productores e importadores de cigarros y otros productos que contengan nicotina, deberán registrar ante las autoridades fiscales, conjuntamente con su declaración de pago correspondiente al primer mes de cada año, la lista de precios de venta por cada uno de los productos que enajenan, clasificados por marca y presentación, señalando los precios al mayorista, detallista y el precio sugerido de venta al público.\n\nAsimismo, se deberá informar a las autoridades fiscales cuando exista alguna modificación en los precios, debiendo presentar a las citadas autoridades, dentro de los 5 días siguientes a que esto ocurra, la lista de precios de venta que estará vigente a partir del momento de la modificación.","Artículo 19 fracción IV LIEPS, regla 5.2.1 RMF 2026","Anexo 2",null,"Artículo 91 CFF. La infracción en cualquier forma a las disposiciones fiscales, diversa a las previstas en este Capítulo, se sancionará con multa $490.00 a $4,640.00"]
[null,"Proporcionar a las autoridades fiscales durante el mes de marzo de cada año, la información que corresponda de los bienes que produjeron, enajenaron o importaron en el año inmediato anterior, respecto de su consumo por entidad federativa e impuesto correspondiente, así como de los servicios prestados por establecimiento en cada entidad federativa.","Artículo 19 fracción VI LIEPS, regla 5.2.1 RMF 2026","Anexo 8","Anexo 8"]
[null,"Declaración trimestral de los 50 principales clientes y proveedores.","Artículo 19 fracción VIII LIEPS","Anexo 1","Anexo 1","No presentar la información a que se refieren el 19, fracciones VIII, IX y XII, de la Ley del Impuesto Especial sobre Producción y Servicios, dentro del plazo previsto en dichos preceptos, o no presentarla conforme lo establecen los mismos.\nFundamento: Artículo 81 fracción VIII CFF.","De $96,230.00 a $288,660.00\n\nFundamento: Artículo 82 fracción VIII CFF."]
[null,"Los productores e importadores de tabacos labrados, deberán informar a la Secretaría de Hacienda y Crédito Público, conjuntamente con su declaración del mes, el precio de enajenación de cada producto y el valor y volumen de los mismos; así como especificar el peso total de tabacos labrados enajenados o, en su caso, la cantidad total de cigarros enajenados. Esta información se deberá proporcionar por cada una de las marcas que produzca o importe el contribuyente.","Artículo 19 fracción IX LIEPS, regla 5.2.1 RMF 2026","Anexo 2"]
[null,"Los fabricantes, productores o envasadores, deberán llevar un control físico del volumen fabricado, producido o envasado, según corresponda, así como reportar trimestralmente, en los meses de abril, julio, octubre y enero, del año que corresponda, la lectura mensual de los registros de cada uno de los dispositivos que se utilicen para llevar el citado control, en el trimestre inmediato anterior al de su declaración.","Artículo 19 fracción X LIEPS, regla 5.2.1 RMF 2026","Anexo 9",null,"No proporcionar la información a que se refiere el artículo 19, fracciones X y XVI de la Ley del Impuesto Especial sobre Producción y Servicios.\n\nFundamento: Artículo 81 fracción XIX CFF.","De $23,940.00 a $47,930.00\n\nFundamento: Artículo 82 fracción XIX CFF."]
[]
[]
[null,"Producto","Inciso del artículo 2 fracción I LIEPS"]
[null,"Combustibles automotrices","D"]
[null,"Obligaciones","Fundamento","Formato MULTI-IEPS","Recomendación "]
[null,"Proporcionar a las autoridades fiscales durante el mes de marzo de cada año, la información que corresponda de los bienes que produjeron, enajenaron o importaron en el año inmediato anterior, respecto de su consumo por entidad federativa e impuesto correspondiente, así como de los servicios prestados por establecimiento en cada entidad federativa.","Artículo 19 fracción VI LIEPS, regla 5.2.1 RMF 2026","Anexo 8","Anexo 8","Artículo 91 CFF. La infracción en cualquier forma a las disposiciones fiscales, diversa a las previstas en este Capítulo, se sancionará con multa $490.00 a $4,640.00"]
[null,"Declaración trimestral de los 50 principales clientes y proveedores.","Artículo 19 fracción VIII LIEPS","Anexo 1","Anexo 1","No presentar la información a que se refieren el 19, fracciones VIII, IX y XII, de la Ley del Impuesto Especial sobre Producción y Servicios, dentro del plazo previsto en dichos preceptos, o no presentarla conforme lo establecen los mismos.\nFundamento: Artículo 81 fracción VIII CFF.","De $96,230.00 a $288,660.00\n\nFundamento: Artículo 82 fracción VIII CFF."]
[null,"Los fabricantes, productores o envasadores, deberán llevar un control físico del volumen fabricado, producido o envasado, según corresponda, así como reportar trimestralmente, en los meses de abril, julio, octubre y enero, del año que corresponda, la lectura mensual de los registros de cada uno de los dispositivos que se utilicen para llevar el citado control, en el trimestre inmediato anterior al de su declaración.","Artículo 19 fracción X LIEPS, regla 5.2.1 RMF 2026","Anexo 9",null,"No proporcionar la información a que se refiere el artículo 19, fracciones X y XVI de la Ley del Impuesto Especial sobre Producción y Servicios.\n\nFundamento: Artículo 81 fracción XIX CFF.","De $23,940.00 a $47,930.00\n\nFundamento: Artículo 82 fracción XIX CFF."]
[null,"Declaración trimestral del precio de enajenación de cada producto, valor y volumen de los mismos, en caso de vinos de mesa es semestral","Artículo 19 fracción XIII LIEPS, regla 5.2.1 RMF 2026","Anexo 1","Anexo 1","No proporcionar la información a que se refiere el artículo 19, fracciones II, tercer párrafo, XIII y XV de la Ley del Impuesto Especial sobre Producción y Servicios.\nFundamento: Artículo 81 fracción XVIII CFF.","De $14,380.00 a $23,940.00\n\nFundamento: Artículo 82 fracción XVIII CFF."]
[]
[]
[null,"Producto","Inciso del artículo 2 fracción I LIEPS"]
[null,"Bebidas energetizantes, así como concentrados, polvos y jarabes para preparar bebidas energetizantes ","F"]
[null,"Obligaciones","Fundamento","Formato MULTI-IEPS","Recomendación "]
[null,"Declaración trimestral de los contribuyentes que se les traslado el IEPS expresamente y por separado.","Artículo 19 fracción II LIEPS, regla 5.2.1 RMF 2026","Anexo 1","Anexo 1","No proporcionar la información a que se refiere el artículo 19, fracciones II, tercer párrafo, XIII y XV de la Ley del Impuesto Especial sobre Producción y Servicios.\nFundamento: Artículo 81 fracción XVIII CFF.","De $14,380.00 a $23,940.00\n\nFundamento: Artículo 82 fracción XVIII CFF."]
[null,"Proporcionar a las autoridades fiscales durante el mes de marzo de cada año, la información que corresponda de los bienes que produjeron, enajenaron o importaron en el año inmediato anterior, respecto de su consumo por entidad federativa e impuesto correspondiente, así como de los servicios prestados por establecimiento en cada entidad federativa.","Artículo 19 fracción VI LIEPS, regla 5.2.1 RMF 2026","Anexo 8","Anexo 8","Artículo 91 CFF. La infracción en cualquier forma a las disposiciones fiscales, diversa a las previstas en este Capítulo, se sancionará con multa $490.00 a $4,640.00"]
[null,"Declaración trimestral de los 50 principales clientes y proveedores.","Artículo 19 fracción VIII LIEPS","Anexo 1","Anexo 1","No presentar la información a que se refieren el 19, fracciones VIII, IX y XII, de la Ley del Impuesto Especial sobre Producción y Servicios, dentro del plazo previsto en dichos preceptos, o no presentarla conforme lo establecen los mismos.\nFundamento: Artículo 81 fracción VIII CFF.","De $96,230.00 a $288,660.00\n\nFundamento: Artículo 82 fracción VIII CFF."]
[null,"Los fabricantes, productores o envasadores, deberán llevar un control físico del volumen fabricado, producido o envasado, según corresponda, así como reportar trimestralmente, en los meses de abril, julio, octubre y enero, del año que corresponda, la lectura mensual de los registros de cada uno de los dispositivos que se utilicen para llevar el citado control, en el trimestre inmediato anterior al de su declaración.","Artículo 19 fracción X LIEPS, regla 5.2.1 RMF 2026","Anexo 9",null,"No proporcionar la información a que se refiere el artículo 19, fracciones X y XVI de la Ley del Impuesto Especial sobre Producción y Servicios.\n\nFundamento: Artículo 81 fracción XIX CFF.","De $23,940.00 a $47,930.00\n\nFundamento: Artículo 82 fracción XIX CFF."]
[null,"Declaración trimestral del precio de enajenación de cada producto, valor y volumen de los mismos, en caso de vinos de mesa es semestral","Artículo 19 fracción XIII LIEPS, regla 5.2.1 RMF 2026","Anexo 1","Anexo 1","No proporcionar la información a que se refiere el artículo 19, fracciones II, tercer párrafo, XIII y XV de la Ley del Impuesto Especial sobre Producción y Servicios.\nFundamento: Artículo 81 fracción XVIII CFF.","De $12,700.00 a $21,150.00\n\nFundamento: Artículo 82 fracción XVIII CFF."]
[]
[]
[null,"Producto","Inciso del artículo 2 fracción I LIEPS"]
[null,"Bebidas saborizadas; concentrados, polvos, jarabes, esencias o extractos de sabores, que al diluirse permitan obtener bebidas saborizadas; y jarabes o concentrados para preparar bebidas saborizadas que se expendan en envases abiertos utilizando aparatos automáticos, eléctricos o mecánicos, siempre que los bienes a que se refiere este inciso contengan cualquier tipo de azúcares añadidos","G"]
[null,"Obligaciones","Fundamento","Formato MULTI-IEPS","Recomendación "]
[null,"Declaración trimestral de los contribuyentes que se les traslado el IEPS expresamente y por separado.","Artículo 19 fracción II LIEPS, regla 5.2.1 RMF 2026","Anexo 1","Anexo 1","No proporcionar la información a que se refiere el artículo 19, fracciones II, tercer párrafo, XIII y XV de la Ley del Impuesto Especial sobre Producción y Servicios.\nFundamento: Artículo 81 fracción XVIII CFF.","De $14,380.00 a $23,940.00\n\nFundamento: Artículo 82 fracción XVIII CFF."]
[null,"Proporcionar a las autoridades fiscales durante el mes de marzo de cada año, la información que corresponda de los bienes que produjeron, enajenaron o importaron en el año inmediato anterior, respecto de su consumo por entidad federativa e impuesto correspondiente, así como de los servicios prestados por establecimiento en cada entidad federativa.","Artículo 19 fracción VI LIEPS, regla 5.2.1 RMF 2026","Anexo 8","Anexo 8","Artículo 91 CFF. La infracción en cualquier forma a las disposiciones fiscales, diversa a las previstas en este Capítulo, se sancionará con multa $490.00 a $4,640.00"]
[null,"Declaración trimestral de los 50 principales clientes y proveedores.","Artículo 19 fracción VIII LIEPS","Anexo 1","Anexo 1","No presentar la información a que se refieren el 19, fracciones VIII, IX y XII, de la Ley del Impuesto Especial sobre Producción y Servicios, dentro del plazo previsto en dichos preceptos, o no presentarla conforme lo establecen los mismos.\nFundamento: Artículo 81 fracción VIII CFF.","De $96,230.00 a $288,660.00\n\nFundamento: Artículo 82 fracción VIII CFF."]
[null,"Los fabricantes, productores o envasadores, de bebidas saborizadas con azúcares añadidos deberán llevar un control físico del volumen fabricado, producido o envasado, según corresponda, así como reportar trimestralmente, en los meses de abril, julio, octubre y enero, del año que corresponda, la lectura mensual de los registros de cada uno de los dispositivos que se utilicen para llevar el citado control, en el trimestre inmediato anterior al de su declaración.","Artículo 19 fracción X LIEPS, regla 5.2.1 RMF 2026","Anexo 9",null,"No proporcionar la información a que se refiere el artículo 19, fracciones X y XVI de la Ley del Impuesto Especial sobre Producción y Servicios.\n\nFundamento: Artículo 81 fracción XIX CFF.","De $23,940.00 a $47,930.00\n\nFundamento: Artículo 82 fracción XIX CFF."]
[]
[]
[null,"Producto","Inciso del artículo 2 fracción I LIEPS"]
[null,"Combustibles Fósiles","H"]
[null,"Obligaciones","Fundamento","Formato MULTI-IEPS","Recomendación "]
[null,"Proporcionar a las autoridades fiscales durante el mes de marzo de cada año, la información que corresponda de los bienes que produjeron, enajenaron o importaron en el año inmediato anterior, respecto de su consumo por entidad federativa e impuesto correspondiente, así como de los servicios prestados por establecimiento en cada entidad federativa.","Artículo 19 fracción VI LIEPS, regla 5.2.1 RMF 2026","Anexo 8","Anexo 8","Artículo 91 CFF. La infracción en cualquier forma a las disposiciones fiscales, diversa a las previstas en este Capítulo, se sancionará con multa $490.00 a $4,640.00"]
[null,"Declaración trimestral de los 50 principales clientes y proveedores.","Artículo 19 fracción VIII LIEPS","Anexo 1","Anexo 1","No presentar la información a que se refieren el 19, fracciones VIII, IX y XII, de la Ley del Impuesto Especial sobre Producción y Servicios, dentro del plazo previsto en dichos preceptos, o no presentarla conforme lo establecen los mismos.\nFundamento: Artículo 81 fracción VIII CFF.","De $96,230.00 a $288,660.00\n\nFundamento: Artículo 82 fracción VIII CFF."]
[null,"Los fabricantes, productores o envasadores, deberán llevar un control físico del volumen fabricado, producido o envasado, según corresponda, así como reportar trimestralmente, en los meses de abril, julio, octubre y enero, del año que corresponda, la lectura mensual de los registros de cada uno de los dispositivos que se utilicen para llevar el citado control, en el trimestre inmediato anterior al de su declaración.","Artículo 19 fracción X LIEPS, regla 5.2.1 RMF 2026","Anexo 9",null,"No proporcionar la información a que se refiere el artículo 19, fracciones X y XVI de la Ley del Impuesto Especial sobre Producción y Servicios.\n\nFundamento: Artículo 81 fracción XIX CFF.","De $23,940.00 a $47,930.00\n\nFundamento: Artículo 82 fracción XIX CFF."]
[null,"Declaración trimestral del precio de enajenación de cada producto, valor y volumen de los mismos, en caso de vinos de mesa es semestral","Artículo 19 fracción XIII LIEPS, regla 5.2.1 RMF 2026","Anexo 1","Anexo 1","No proporcionar la información a que se refiere el artículo 19, fracciones II, tercer párrafo, XIII y XV de la Ley del Impuesto Especial sobre Producción y Servicios.\nFundamento: Artículo 81 fracción XVIII CFF.","De $12,700.00 a $21,150.00\n\nFundamento: Artículo 82 fracción XVIII CFF."]
[]
[]
[null,"Producto","Inciso del artículo 2 fracción I LIEPS"]
[null,"Plaguicidas","I"]
[null,"Obligaciones","Fundamento","Formato MULTI-IEPS","Recomendación "]
[null,"Proporcionar a las autoridades fiscales durante el mes de marzo de cada año, la información que corresponda de los bienes que produjeron, enajenaron o importaron en el año inmediato anterior, respecto de su consumo por entidad federativa e impuesto correspondiente, así como de los servicios prestados por establecimiento en cada entidad federativa.","Artículo 19 fracción VI LIEPS, regla 5.2.1 RMF 2026","Anexo 8",null,"Artículo 91 CFF. La infracción en cualquier forma a las disposiciones fiscales, diversa a las previstas en este Capítulo, se sancionará con multa $490.00 a $4,640.00"]
[null,"Declaración trimestral de los 50 principales clientes y proveedores.","Artículo 19 fracción VIII LIEPS","Anexo 1","Anexo 1","No presentar la información a que se refieren el 19, fracciones VIII, IX y XII, de la Ley del Impuesto Especial sobre Producción y Servicios, dentro del plazo previsto en dichos preceptos, o no presentarla conforme lo establecen los mismos.\nFundamento: Artículo 81 fracción VIII CFF.","De $96,230.00 a $288,660.00\n\nFundamento: Artículo 82 fracción VIII CFF."]
[null,"Los fabricantes, productores o envasadores, deberán llevar un control físico del volumen fabricado, producido o envasado, según corresponda, así como reportar trimestralmente, en los meses de abril, julio, octubre y enero, del año que corresponda, la lectura mensual de los registros de cada uno de los dispositivos que se utilicen para llevar el citado control, en el trimestre inmediato anterior al de su declaración.","Artículo 19 fracción X LIEPS, regla 5.2.1 RMF 2026","Anexo 9",null,"No proporcionar la información a que se refiere el artículo 19, fracciones X y XVI de la Ley del Impuesto Especial sobre Producción y Servicios.\n\nFundamento: Artículo 81 fracción XIX CFF.","De $23,940.00 a $47,930.00\n\nFundamento: Artículo 82 fracción XIX CFF."]
[]
[]
[null,"Producto","Inciso del artículo 2 fracción I LIEPS"]
[null,"Alimentos no básicos que se listan a continuación, con una densidad calórica de 275 kilocalorías o mayor por cada 100 gramos ","J"]
[null,"Obligaciones","Fundamento","Formato MULTI-IEPS","Recomendación "]
[null,"Declaración trimestral de los contribuyentes que se les traslado el IEPS expresamente y por separado.","Artículo 19 fracción II LIEPS, regla 5.2.1 RMF 2026","Anexo 1","Anexo 1","No proporcionar la información a que se refiere el artículo 19, fracciones II, tercer párrafo, XIII y XV de la Ley del Impuesto Especial sobre Producción y Servicios.\nFundamento: Artículo 81 fracción XVIII CFF.","De $14,380.00 a $23,940.00\n\nFundamento: Artículo 82 fracción XVIII CFF."]
[null,"Proporcionar a las autoridades fiscales durante el mes de marzo de cada año, la información que corresponda de los bienes que produjeron, enajenaron o importaron en el año inmediato anterior, respecto de su consumo por entidad federativa e impuesto correspondiente, así como de los servicios prestados por establecimiento en cada entidad federativa.","Artículo 19 fracción VI LIEPS, regla 5.2.1 RMF 2026","Anexo 8",null,"Artículo 91 CFF. La infracción en cualquier forma a las disposiciones fiscales, diversa a las previstas en este Capítulo, se sancionará con multa $490.00 a $4,640.00"]
[null,"Declaración trimestral de los 50 principales clientes y proveedores.","Artículo 19 fracción VIII LIEPS","Anexo 1","Anexo 1","No presentar la información a que se refieren el 19, fracciones VIII, IX y XII, de la Ley del Impuesto Especial sobre Producción y Servicios, dentro del plazo previsto en dichos preceptos, o no presentarla conforme lo establecen los mismos.\nFundamento: Artículo 81 fracción VIII CFF.","De $96,230.00 a $288,660.00\n\nFundamento: Artículo 82 fracción VIII CFF."]

{"sheet":"FUNDO","index":6,"n_rows":16,"n_cols":8,"rows_kept":16,"cut":false,"hidden":false,"merged":[[14,1,14,3],[13,1,13,3],[15,1,15,3]]}
[]
[]
[]
[null,"Obligaciones de las declaraciones informativas (recomendación de acuerdo al analisis de las fracciones del artículo 19 LIEPS)"]
[null,"Fracción","Obligación","Producto","¿Cómo se cumple?","¿Devengado o Flujo?","Información base","Periodicidad"]
[null,"II","Expedir comprobantes fiscales, sin el traslado en forma expresa y por separado del impuesto establecido en esta Ley, salvo tratándose de la enajenación de los bienes a que se refieren los incisos A), D), F), G), I) y J) de la fracción I del artículo 2o. de esta Ley, siempre que el adquirente sea a su vez contribuyente de este impuesto por dichos bienes y así lo solicite.","A)  Bebidas con contenido alcohólico y cerveza;\nD) Combustibles automotrices;\nF) Bebidas energetizantes, así como concentrados, polvos y jarabes para preparar bebidas energetizantes;\nG) Bebidas saborizadas; concentrados, polvos, jarabes, esencias o extractos de sabores, que al diluirse permitan obtener bebidas saborizadas; y jarabes o concentrados para preparar bebidas saborizadas que se expendan en envases abiertos utilizando aparatos automáticos, eléctricos o mecánicos, siempre que los bienes a que se refiere este inciso contengan cualquier tipo de azúcares o edulcorantes añadidos;\nI) Plaguicidas;\nJ) Alimentos no básicos que se listan a continuación, con una densidad calórica de 275 kilocalorías o mayor por cada 100 gramos ","Emitiendo CFDI conforme a la LIEPS y reglas del SAT; cuando proceda, desglosar IEPS expresamente","Devengado / operación facturada","CFDI emitidos","Mensual / permanente"]
[null,"II","Los contribuyentes que enajenen los bienes a que se refieren los incisos A), F), G) y J) de la fracción I del artículo 2o. de esta Ley, que trasladen en forma expresa y por separado el impuesto establecido en la misma, deberán proporcionar al Servicio de Administración Tributaria en forma trimestral, en los meses de abril, julio, octubre y enero, del año que corresponda, la relación de las personas a las que en el trimestre anterior al que se declara les hubiere trasladado el impuesto especial sobre producción y servicios en forma expresa y por separado en los términos de esta fracción, así como el monto del impuesto trasladado en dichas operaciones y la información y documentación que mediante reglas de carácter general señale el Servicio de Administración Tributaria.\n\nLos contribuyentes que enajenen vinos de mesa, deberán cumplir con la obligación a que se refiere el párrafo anterior en los meses de enero y julio de cada año.","A)  Bebidas con contenido alcohólico y cerveza;\nF) Bebidas energetizantes, así como concentrados, polvos y jarabes para preparar bebidas energetizantes;\nG) Bebidas saborizadas; concentrados, polvos, jarabes, esencias o extractos de sabores, que al diluirse permitan obtener bebidas saborizadas; y jarabes o concentrados para preparar bebidas saborizadas que se expendan en envases abiertos utilizando aparatos automáticos, eléctricos o mecánicos, siempre que los bienes a que se refiere este inciso contengan cualquier tipo de azúcares o edulcorantes añadidos;\nJ) Alimentos no básicos que se listan a continuación, con una densidad calórica de 275 kilocalorías o mayor por cada 100 gramos ","Integrar relación de clientes con IEPS trasladado y montos respectivos","Devengado","CFDI emitidos con IEPS desglosado","Trimestral (abril, julio, octubre y enero), vinos de mesa trimestral"]
[null,"II","Información especial de tabacos y nicotina","C) Tabacos labrados y otros","Identificar peso de tabaco, cigarros o miligramos de nicotina en CFDI","Devengado","CFDI emitidos y controles de inventario","Permanente"]
[null,"VI","VI.\tProporcionar a las autoridades fiscales durante el mes de marzo de cada año, la información que corresponda de los bienes que produjeron, enajenaron o importaron en el año inmediato anterior, respecto de su consumo por entidad federativa e impuesto correspondiente, así como de los servicios prestados por establecimiento en cada entidad federativa. Para los efectos de esta fracción, se considera que los bienes se consumen en el lugar en el que se hace la entrega material del producto, de acuerdo con el comprobante fiscal.",null,"Determinar consumo por entidad federativa conforme a la entrega material del producto","Devengado / entrega material","CFDI, logística, entregas, inventarios","Anual (marzo)"]
[null,"VIII","VIII.\tLos contribuyentes de los bienes a que se refieren los incisos A), B), C), D), F), G), H), I) y J) de la fracción I del artículo 2o. de esta Ley, obligados al pago del impuesto especial sobre producción y servicios a que se refiere la misma, deberán proporcionar al Servicio de Administración Tributaria, trimestralmente, en los meses de abril, julio, octubre y enero, del año que corresponda, la información sobre sus 50 principales clientes y proveedores del trimestre inmediato anterior al de su declaración, respecto de dichos bienes. Tratándose de contribuyentes que enajenen o importen vinos de mesa, deberán cumplir con esta obligación de manera semestral, en los meses de enero y julio de cada año.\n\nLos contribuyentes que tengan uno o varios establecimientos ubicados en una entidad federativa diferente al de la matriz, deberán presentar la información a que se refiere el párrafo anterior por las operaciones que correspondan a dichos establecimientos para su consumo final.\n\nLa información a que se refiere esta fracción y la fracción VI de este artículo, será la base para la determinación de las participaciones a que se refiere esta Ley y los artículos 3o. y 3o.-A de la Ley de Coordinación Fiscal, en materia del impuesto especial sobre producción y servicios","A)  Bebidas con contenido alcohólico y cerveza;\nB)  Alcohol, alcohol desnaturalizado y mieles incristalizables;\nC) Tabacos labrados y otros;\nD) Combustibles automotrices;\nF) Bebidas energetizantes, así como concentrados, polvos y jarabes para preparar bebidas energetizantes;\nG) Bebidas saborizadas; concentrados, polvos, jarabes, esencias o extractos de sabores, que al diluirse permitan obtener bebidas saborizadas; y jarabes o concentrados para preparar bebidas saborizadas que se expendan en envases abiertos utilizando aparatos automáticos, eléctricos o mecánicos, siempre que los bienes a que se refiere este inciso contengan cualquier tipo de azúcares o edulcorantes añadidos;\nH) Combustibles Fósiles\nI) Plaguicidas;\nJ) Alimentos no básicos que se listan a continuación, con una densidad calórica de 275 kilocalorías o mayor por cada 100 gramos ","Integrar operaciones del trimestre por RFC y monto acumulado","Devengado / operación realizada","CFDI emitidos y recibidos","Trimestral"]
[null,"XIII","XIII.\tLos contribuyentes de los bienes a que se refieren los incisos A), D), F) y H) de la fracción I del artículo 2o. de esta Ley, obligados al pago del impuesto especial sobre producción y servicios, deberán proporcionar al Servicio de Administración Tributaria, trimestralmente, en los meses de abril, julio, octubre y enero, del año que corresponda, el precio de enajenación de cada producto, valor y volumen de los mismos, efectuado en el trimestre inmediato anterior.\n\n Los contribuyentes que enajenen vinos de mesa, deberán cumplir con la obligación a que se refiere esta fracción en los meses de enero y julio de cada año.","A)  Bebidas con contenido alcohólico y cerveza;\nD) Combustibles automotrices;\nF) Bebidas energetizantes, así como concentrados, polvos y jarabes para preparar bebidas energetizantes;\nH) Combustibles Fósiles\n","Reportar volumen comercializado y valor de operaciones realizadas","Devengado / enajenación","CFDI, inventarios y controles volumétricos","Trimestral"]
[]
[]
[null,"Ley de cordinación fiscal"]
[null,"Artículo 3o.- La Secretaría de Hacienda y Crédito Público tiene la obligación de publicar en el Diario Oficial de la Federación el calendario de entrega, porcentaje, fórmulas y variables utilizadas, así como el monto, estimados, que recibirá cada Entidad Federativa del fondo general y del fondo de fomento municipal, para cada ejercicio fiscal a más tardar el 31 de enero del ejercicio de que se trate.\nPárrafo adicionado DOF 31-12-1999. Reformado DOF 14-07-2003\n\nEn los informes trimestrales sobre las finanzas públicas que la Secretaría de Hacienda y Crédito Público entrega a la Cámara de Diputados deberá incluir la evolución de la recaudación federal participable, el importe de las participaciones entregadas de cada fondo a las entidades en ese lapso y, en su caso, el ajuste realizado al término de cada ejercicio fiscal."]
[null,"Artículo 3-A.- Las entidades federativas adheridas al Sistema Nacional de Coordinación Fiscal, participarán de la recaudación que se obtenga del impuesto especial sobre producción y servicios, por la realización de los actos o actividades gravados con dicho impuesto sobre los bienes que a continuación se mencionan, conforme a las proporciones siguientes:\nI.- El 20% de la recaudación si se trata de cerveza, bebidas refrescantes, alcohol, bebidas alcohólicas fermentadas y bebidas alcohólicas.\nFracción reformada DOF 31-12-1999\nII.- El 8% de la recaudación si se trata de tabacos labrados.\n\nEsta participación se distribuirá en función del porcentaje que represente la enajenación de cada uno de los bienes a que se refiere este artículo en cada entidad federativa, de la enajenación nacional, y se liquidará conforme a lo establecido en el artículo 7o. de esta Ley.\n\nLos municipios recibirán como mínimo el 20% de la participación que le corresponda al estado."]

{"sheet":"EJEMPLO","index":7,"n_rows":87,"n_cols":19,"rows_kept":87,"cut":false,"hidden":false,"merged":[[33,1,33,9]]}
[]
[]
[null,"Ventas del mes"]
[]
[null,"Fecha","Producto","RFC del cliente","Cliente","Entidad federativa","Cantidad","Unidad de medida","Presentación","Importe","IEPS","IVA","Total","Método de pago","¿Exento?","Tasa de IEPS cuando esta desglosado","¿IEPS incluido en el precio?","Tasa de IEPS","Importe IEPS incluido"]
[null,"01/05/20XX","Chocolate","XAXX010101000","Público en general","09",10,"Caja","200 gr.",850,null,{"$f":"SUMIF(J6:K6,\">0\")*0.16","v":136},{"$f":"SUM(J6:L6)","v":986},"PUE","No",null,"Sí",0.08,{"$f":"IFERROR(IF(Q6=\"Sí\",ROUND((J6/(1+R6))*R6,2),\"\"),\"\")","v":62.96}]
[null,"01/05/20XX","Vino de mesa","MEM890603MJ7","MEM, S.A.","09",30,"Caja","750 ml",8900,{"$f":"IF(P7<>\"\",J7*P7,\"\")","v":2358.5},{"$f":"SUMIF(J7:K7,\">0\")*0.16","v":1801.3600000000001},{"$f":"SUM(J7:L7)","v":13059.86},"PUE","No",0.26500000000000001,"No",null,{"$f":"IFERROR(IF(Q7=\"Sí\",ROUND((J7/(1+R7))*R7,2),\"\"),\"\")","v":""}]
[null,"01/05/20XX","Brandy","XAXX010101000","Público en general","09",5,"Botella","1 L.",1560,{"$f":"IF(P8<>\"\",J8*P8,\"\")","v":""},249.6,1809.6,"PUE","No",null,"Sí",0.53,540.39]
[null,"01/05/20XX","Dulces","XAXX010101000","Público en general","09",1,"Bolsa","100 gr",89,"",14.24,103.24,"PUE","No",null,"Sí",0.08,6.59]
[null,"01/05/20XX","Cigarros","XAXX010101000","Público en general","09",2,"Paquete",null,120,"",19.2,139.19999999999999,"PUE","Sí",null,"No",null,""]
[null,"01/05/20XX","Cerveza","XAXX010101000","Público en general","09",10,"Botellas",null,210,"",33.6,243.6,"PUE","Sí",null,"No",null,""]
[null,"01/05/20XX","Chocolate","JBE870603LO9","JBE, S.A. DE C.V.","09",30,"Caja","100 gr",2361,188.88,407.98080000000004,2957.8608000000004,"PUE","No",0.08,"No",null,""]
[null,"01/05/20XX","Vino de mesa","XAXX010101000","Público en general","09",8,"Botella","375 ml",960,254.4,194.30400000000003,1408.7040000000002,"PUE","No",0.26500000000000001,"No",null,""]
[null,"01/05/20XX","Brandy","JBE870603LO9","JBE, S.A. DE C.V.","09",5,"Caja","750 ml",1890,1001.7,462.67199999999997,3354.3719999999998,"PUE","No",0.53,"No",null,""]
[null,"01/05/20XX","Dulces","MEM890603MJ7","MEM, S.A.","09",20,"Bolsa",null,750,"",120,870,"PUE","No",null,"Sí",0.08,55.56]
[null,"01/05/20XX","Refresco cola 600 ml","XAXX010101000","Público en general",15,24,"Botella",null,420,"",67.2,487.2,"PUE","Sí",null,"No",null,""]
[null,"01/05/20XX","Bebida energética","COSC8001137NA","Comercializadora Sol, S.A.",19,12,"Lata",null,540,"",86.4,626.4,"PPD","Sí",null,"No",null,""]
[null,"01/05/20XX","Cerveza artesanal","AEUJ850902KL1","AEUJ Distribuciones",21,48,"Botella",null,3840,"",614.4,4454.3999999999996,"PUE","Sí",null,"No",null,""]
[null,"01/05/20XX","Whisky","LOPR750412AB2","LOPR Comercial",14,6,"Botella","1 L.",4200,2226,1028.1600000000001,7454.16,"PUE","No",0.53,"No",null,""]
[null,"01/05/20XX","Tequila reposado","XAXX010101000","Público en general","09",3,"Botella","1 L.",1950,"",312,2262,"PUE","No",null,"Sí",0.53,675.49]
[null,"01/05/20XX","Vodka","MEM890603MJ7","MEM, S.A.","08",10,"Botella","1 L.",5100,2703,1248.48,9051.48,"PPD","No",0.53,"No",null,""]
[null,"01/05/20XX","Ron","JBE870603LO9","JBE, S.A. DE C.V.",11,15,"Botella","1 L.",6300,3339,1542.24,11181.24,"PUE","No",0.53,"No",null,""]
[null,"01/05/20XX","Cigarros premium","XEXX010101000","Cliente extranjero",26,50,"Cajetilla",null,4500,"",720,5220,"PUE","Sí",null,"No",null,""]
[null,"01/05/20XX","Botanas fritas","XAXX010101000","Público en general","09",35,"Bolsa","100 gr",1050,"",168,1218,"PUE","No",null,"Sí",0.08,77.78]
[null,"01/05/20XX","Helado","OPL920611NM2","Operadora del Pacífico","02",18,"Caja","500 ml",2700,216,466.56,3382.56,"PUE","No",0.08,"No",null,""]
[null,"01/05/20XX","Bebida light","XAXX010101000","Público en general","09",15,"Botella",null,315,"",50.4,365.4,"PUE","Sí",null,"No",null,""]
[null,"01/05/20XX","Chocolate","XAXX010101000","Público en general","09",12,"Caja","100 gr",1080,"",172.8,1252.8,"PUE","No",null,"Sí",0.08,80]
[null,"01/05/20XX","Cerveza","MEM890603MJ7","MEM, S.A.","09",24,"Botella",null,980,"",156.80000000000001,1136.8,"PUE","Sí",null,"No",null,""]
[null,"01/05/20XX","Refresco","XAXX010101000","Público en general","09",40,"Botella",null,760,"",121.60000000000001,881.6,"PUE","Sí",null,"No",null,""]
[null,"01/05/20XX","Botanas","JBE870603LO9","JBE, S.A. DE C.V.","09",50,"Bolsa","250 gr",1450,"",232,1682,"PUE","No",null,"Sí",0.08,107.41]
[null,"01/05/20XX","Whisky","LOPR750412AB2","LOPR Comercial",14,4,"Botella","1 L.",3200,"",512,3712,"PUE","No",null,"Sí",0.53,1108.5]
[null,null,null,null,null,null,null,null,null,{"$f":"SUM(J6:J31)","v":56075},{"$f":"SUM(K6:K31)","v":12287.48},10937.996799999997,79300.476800000004,null,null,null,null,null,{"$f":"SUM(S6:S31)","v":2714.6800000000003}]
[]
[null,"Artículo 19 LIEPS.- Los contribuyentes a que se refiere esta Ley tienen, además de las obligaciones señaladas en otros artículos de la misma y en las demás disposiciones fiscales, las siguientes:\n\nI.\tLlevar contabilidad de conformidad con el Código Fiscal de la Federación, su Reglamento y el Reglamento de esta Ley, y efectuar conforme a este último la separación de las operaciones, desglosadas por tasas. Asimismo, se deberán identificar las operaciones en las que se pague el impuesto mediante la aplicación de las cuotas previstas en los artículos 2o., fracción I, incisos C), segundo y tercer párrafos, D), G) y H) y 2o.-A de esta Ley."]
[]
[null,null,"Registro contable de las ventas"]
[]
[null,null,"Clientes",null,{"$f":"SUM(M6:M31)","v":79300.476800000004}]
[null,null,"IEPS trasaladado pendiente de cobro al 8%",null,null,{"$f":"SUMIF($P$6:$P$31,VALUE(MID(C39,FIND(\"al \",C39)+3,LEN(C39)-(FIND(\"al \",C39)+2))),$K$6:$K$31)+SUMIF($R$6:$R$31,VALUE(MID(C39,FIND(\"al \",C39)+3,LEN(C39)-(FIND(\"al \",C39)+2))),$S$6:$S$31)","v":795.18}]
[null,null,"IEPS trasaladado pendiente de cobro al 26.5%",null,null,{"$f":"SUMIF($P$6:$P$31,VALUE(MID(C40,FIND(\"al \",C40)+3,LEN(C40)-(FIND(\"al \",C40)+2))),$K$6:$K$31)+SUMIF($R$6:$R$31,VALUE(MID(C40,FIND(\"al \",C40)+3,LEN(C40)-(FIND(\"al \",C40)+2))),$S$6:$S$31)","v":2612.9}]
[null,null,"IEPS trasaladado pendiente de cobro al 53%",null,null,11594.080000000002]
[null,null,"IVA trasladado pendie de cobro al 16%",null,null,{"$f":"SUM(L6:L31)","v":10937.996799999997}]
[null,null,"Ventas exentas",null,null,{"$f":"SUMIF($O$6:$O$31,\"Sí\",$J$6:J31)","v":11685}]
[null,null,"Ventas IEPS 8%, IVA 16%",null,null,{"$f":"SUMIF($P$6:$P$31,8%,$J$6:$J$31)-SUMIF($R$6:$R$31,8%,$S$6:$S$31)+SUMIF($R$6:$R$31,8%,$J$6:$J$31)","v":9939.7000000000007}]
[null,null,"Ventas IEPS 26.5%, IVA 16%",null,null,{"$f":"SUMIF($P$6:$P$31,26.5%,$J$6:$J$31)-SUMIF($R$6:$R$31,26.5%,$S$6:$S$31)+SUMIF($R$6:$R$31,26.5%,$J$6:$J$31)","v":9860}]
[null,null,"Ventas IEPS 53%, IVA 16%",null,null,{"$f":"SUMIF($P$6:$P$31,53%,$J$6:$J$31)-SUMIF($R$6:$R$31,53%,$S$6:$S$31)+SUMIF($R$6:$R$31,53%,$J$6:$J$31)","v":21875.62}]
[null,null,"SUMAS IGUALES",null,{"$f":"SUM(E38:E46)","v":79300.476800000004},{"$f":"SUM(F39:F46)","v":79300.476799999989}]
[]
[null,null,"Registro de cobranza"]
[null,null,"Bancos",null,{"$f":"IFERROR(ROUND(SUMIF($N$6:$N$31,\"PUE\",$M$6:$M$31),2),0)","v":69622.600000000006}]
[null,null,"Clientes",null,null,{"$f":"E50","v":69622.600000000006}]
[null,null,"IEPS trasaladado pendiente de cobro al 8%",null,{"$f":"SUMIFS($K$6:$K$31,\n    $P$6:$P$31, VALUE(MID(C39,FIND(\"al \",C39)+3, LEN(C39)-(FIND(\"al \",C39)+2))),\n    $N$6:$N$31, \"PUE\")+SUMIFS($S$6:$S$31,$R$6:$R$31, VALUE(MID(C39,FIND(\"al \",C39)+3, LEN(C39)-(FIND(\"al \",C39)+2))),$N$6:$N$31, \"PUE\")","v":795.18}]
[null,null,"IEPS trasaladado pendiente de cobro al 26.5%",null,{"$f":"SUMIFS($K$6:$K$31,\n    $P$6:$P$31, VALUE(MID(C40,FIND(\"al \",C40)+3, LEN(C40)-(FIND(\"al \",C40)+2))),\n    $N$6:$N$31, \"PUE\")+SUMIFS($S$6:$S$31,$R$6:$R$31, VALUE(MID(C40,FIND(\"al \",C40)+3, LEN(C40)-(FIND(\"al \",C40)+2))),$N$6:$N$31, \"PUE\")","v":2612.9}]
[null,null,"IEPS trasaladado pendiente de cobro al 53%",null,{"$f":"SUMIFS($K$6:$K$31,\n    $P$6:$P$31, VALUE(MID(C41,FIND(\"al \",C41)+3, LEN(C41)-(FIND(\"al \",C41)+2))),\n    $N$6:$N$31, \"PUE\")+SUMIFS($S$6:$S$31,$R$6:$R$31, VALUE(MID(C41,FIND(\"al \",C41)+3, LEN(C41)-(FIND(\"al \",C41)+2))),$N$6:$N$31, \"PUE\")","v":8891.08}]
[null,null,"IEPS trasladado pendiente de cobro al 8%",null,null,{"$f":"E52","v":795.18}]
[null,null,"IEPS trasladado pendiente de cobro al 26.5%",null,null,{"$f":"E53","v":2612.9}]
[null,null,"IEPS trasladado pendiente de cobro al 53%",null,null,8891.08]
[null,null,"IVA trasladado pendie de cobro al 16%",null,{"$f":"SUMIF($N$6:$N$31,\"PUE\",L6:L31)","v":9603.116799999998}]
[null,null,"IVA trasladado cobrado al 16%",null,null,{"$f":"E58","v":9603.116799999998}]
[null,null,"SUMAS IGUALES",null,{"$f":"SUM(E50:E59)","v":91524.876799999998},{"$f":"SUM(F50:F59)","v":91524.876799999998}]
[]
[]
[null,"Compras"]
[null,"Fecha","Producto","RFC del cliente","Cliente","Entidad federativa","Cantidad","Unidad de medida","Importe","IEPS","IVA","Total","Método de pago","¿Exento?"]
[null,"18/05/20xx","Vino de mesa","RER900603LO9","RER, S.A. DE C.V.",15,100,"Caja",78000,{"$f":"I65*0.265","v":20670},{"$f":"(I65+J65)*16%","v":15787.2},{"$f":"SUM(I65:K65)","v":114457.2},"PUE","No"]
[]
[]
[null,"Determinación del IEPS por pagar o a favor"]
[null,null,null,"IEPS cobrado"]
[null,null,"Botanas",{"$f":"ROUND(IFERROR(SUMIF($C$6:$C$31,C70,$K$6:$K$31),0)+IFERROR(SUMIF($C$6:$C$31,C70,$S$6:$S$31),0),0)","v":107}]
[null,null,"Botanas fritas",{"$f":"ROUND(IFERROR(SUMIF($C$6:$C$31,C71,$K$6:$K$31),0)+IFERROR(SUMIF($C$6:$C$31,C71,$S$6:$S$31),0),0)","v":78}]
[null,null,"Chocolate",332]
[null,null,"Dulces",62]
[null,null,"Helado",216]
[null,null,"Total IEPS por pagar",{"$f":"SUM(D70:D74)","v":795}]
[]
[null,null,null,"IEPS cobrado"]
[null,null,"Ron",{"$f":"ROUND(IFERROR(SUMIF($C$6:$C$31,C78,$K$6:$K$31),0)+IFERROR(SUMIF($C$6:$C$31,C78,$S$6:$S$31),0),0)","v":3339}]
[null,null,"Tequila reposado",675]
[null,null,"Vino de mesa",2613]
[null,null,"Vodka",2703]
[null,null,"Whisky",3335]
[null,null,"Brandy",1542]
[null,null,"Total IEPS cobrado",{"$f":"SUM(D78:D83)","v":14207}]
[null,"(-)"]
[null,null,"IEPS acreditable pagado",{"$f":"J65","v":20670}]
[null,"(=)",{"$f":"IF(D84>=D86,\"IEPS por pagar\",\"IEPS saldo a favor\")","v":"IEPS saldo a favor"},{"$f":"IFERROR(IF(D84>=D86,D84-D86,D86-D84),\"\")","v":6463}]

{"sheet":"ANEXO1","index":8,"n_rows":5,"n_cols":35,"rows_kept":5,"cut":false,"hidden":false,"merged":[]}
[null,"ANEXO 1 - INFORMACIÓN SOBRE IMPORTE Y VOLUMEN DE COMPRAS Y VENTAS   "]
[null,"Periodo",null,"Año"]
[]
[null,"Campo1","Campo2","Campo3","Campo4","Campo5","Campo6","Campo7","Campo8","Campo9","Campo10","Campo11","Campo12","Campo13","Campo14","Campo15","Campo16","Campo17","Campo18","Campo19","Campo20","Campo21","Campo22","Campo23","Campo24","Campo25","Campo26","Campo27","Campo28","Campo29","Campo30","Campo31","Campo32","Campo33","Campo34"]
[null,"TIPO DE OPERACIÓN","RFC DEL CLIENTE O PROVEEDOR","APELLIDO PATERNO, APELLIDO MATERNO, NOMBRE (S)","CLAVE DE LA ENTIDAD FEDERATIVA","TIPO DE PRODUCTO","EMPRESA TABACALERA","CLAVE GENERICA DEL PRODUCTO","GRADUACION","Volumen total de enajenación por tipo de producto","EMPAQUE","PRESENTACION","UNIDAD DE MEDIDA","Valor de la operación (antes de impuestos)","Valor de la operación valuada al precio de venta al detallista","IEPS PAGADO / TRASLADADO","IVA PAGADO / TRASLADADO","IEPS trasladado por la aplicación de la cuota específica de cigarros enajenados","IEPS trasladado por la aplicación de la cuota específica por el peso total en gramos de los puros y otros tabacos labrados, así como, por el peso total en miligramos de otros productos que contengan nicotina enajenados","IEPS trasladado por la aplicación de la cuota específica por el peso total en gramos de los puros y otros tabacos labrados hechos enteramente a mano enajenados","IEPS trasladado por la aplicación de la cuota de bebidas saborizadas","IEPS trasladado por la aplicación de la cuota de bebidas energetizantes","IEPS trasladado por la aplicación de la cuota de bebidas saborizadas con azúcares añadidos","IEPS trasladado por la aplicación de la cuota de bebidas saborizadas con edulcorantes añadidos.","IEPS trasladado por la aplicación de la cuota de bebidas energetizantes o concentrados, polvos y jarabes para preparar bebidas energetizantes con azúcares añadidos.","IEPS trasladado por la aplicación de la cuota de bebidas energetizantes o concentrados, polvos y jarabes para preparar bebidas energetizantes con edulcorantes añadidos.","IEPS pagados en la importación por la aplicación de la cuota específica de cigarros","IEPS pagado en la importación por la aplicación de la cuota específica de los puros y otros tabacos labrados, así como, de otros productos que contengan nicotina","IEPS pagados en la importación por la aplicación de la cuota específica de los puros y otros tabacos labrados hechos enteramente a mano","IEPS pagado en la importación por la aplicación de la cuota de bebidas saborizadas","IEPS pagado en la importación por la aplicación de la cuota de bebidas energetizantes","IEPS pagado en la importación por la aplicación de la cuota de bebidas saborizadas con azúcares añadidos","IEPS pagado en la importación por la aplicación de la cuota de bebidas saborizadas con edulcorantes añadidos","IEPS pagado en la importación por la aplicación de la cuota de bebidas energetizantes o concentrados, polvos y jarabes para preparar bebidas energetizantes con azúcares añadidos","IEPS pagado en la importación por la aplicación de la cuota de bebidas energetizantes o concentrados, polvos y jarabes para preparar bebidas energetizantes con edulcorantes añadidos"]

{"sheet":"ANEXO3","index":9,"n_rows":5,"n_cols":13,"rows_kept":5,"cut":false,"hidden":false,"merged":[]}
[null,"ANEXO 3 - INFORMACIÓN DE LOS EQUIPOS DE PRODUCCIÓN, DESTILACIÓN O ENVASAMIENTO  "]
[null,"Periodo",null,"Año "]
[]
[null,"Campo1","Campo2","Campo3","Campo4","Campo5","Campo6","Campo7","Campo8","Campo9","Campo10","Campo11","Campo12"]
[null,"Localización de la planta","Tipo de equipos","Fabricante","Marca","Modelo","Número de serie","País de origen","Capacidad (litros 55% / 24 hrs)","Velocidad ( litros / minutos)","Platos","Válvulas","Alambiques"]

{"sheet":"ANEXO4","index":10,"n_rows":5,"n_cols":12,"rows_kept":5,"cut":false,"hidden":false,"merged":[[0,1,0,2]]}
[null,"ANEXO 4 - REPORTE DE INICIO O TÉRMINO DEL PROCESO DE PRODUCCIÓN O DESTILACIÓN"]
[null,"Periodo",null,"Año "]
[]
[null,"Campo1","Campo2","Campo3","Campo4","Campo5","Campo6","Campo7","Campo8","Campo9","Campo10","Campo11"]
[null,"Fecha de inicio","Fecha de término","Indique la periodicidad del proceso","Materia prima a utilizar","Cantidad","Unidad de medida","Existencias (litros)","Volumen estimado a destilar (lts 55%)","Volumen fabricado o producido (lts 55%)","Merma","Uso de la producción"]

{"sheet":"ANEXO5","index":11,"n_rows":5,"n_cols":13,"rows_kept":5,"cut":false,"hidden":false,"merged":[[0,1,0,2]]}
[null,"ANEXO 5 - REPORTE DE INICIO O TÉRMINO DEL PROCESO DE ENVASAMIENTO "]
[null,"Periodo",null,"Año "]
[]
[null,"Campo1","Campo2","Campo3","Campo4","Campo5","Campo6","Campo7","Campo8","Campo9","Campo10","Campo11","Campo12"]
[null,"Fecha de inicio","Fecha de término","Indique la periodicidad del proceso","Nombre genérico de la bebida a envasar","Procedencia","Graduación alcohólica","Capacidad de la botella (litros)","Unidades","Destino de la producción","Litros envasados durante el proceso","Mermas","Litros ingresados a la planta al inicio del proceso"]

{"sheet":"ANEXO8V","index":12,"n_rows":5,"n_cols":6,"rows_kept":5,"cut":false,"hidden":false,"merged":[]}
[null,"Distribución de producción y ventas por entidad federativa"]
[null,"Año",null,"Periodo  "]
[]
[null,"Campo1","Campo2","Campo3","Campo4","Campo5"]
[null,"Identificación del tercero","Producto o servicio que declara","Entidad federativa","Valor total de la producción","Importe de las ventas"]

{"sheet":"ANEXO9","index":13,"n_rows":5,"n_cols":16,"rows_kept":5,"cut":false,"hidden":false,"merged":[[0,1,0,3]]}
[null," ANEXO 9 - INFORMACIÓN DE REPORTE TRIMESTRAL DE LOS REGISTROS DE CADA UNO DE LOS DISPOSITIVOS QUE SE UTILICEN PARA LLEVAR EL CONTROL FÍSICO DEL VOLUMEN FABRICADO, PRODUCIDO O ENVASADO "]
[null,"Periodo",null,"Año "]
[]
[null,"Campo1","Campo2","Campo3","Campo4","Campo5","Campo6","Campo7","Campo8","Campo9","Campo10","Campo11","Campo12","Campo13","Campo14","Campo15"]
[null,"Indique si se trata de","Indique el rubro de que se trate","Empresa tabacalera","Tipo de producto tabacos","Tipo de producto confis","Unidades","Empaque","Presentación","Unidad de medida","Número de cajas producidas en el periódo","Número de envases por caja","Número de cajas de cigarros, tabacos labrados u otros productos que contengan nicotina producidos en el periodo","Número de cajetillas por caja","Lectura de Integrador de Volumen aparente Inicial","Lectura de Integrador de Volumen aparente Final"]

{"sheet":"CLAVEG","index":14,"n_rows":51,"n_cols":15,"rows_kept":51,"cut":false,"hidden":false,"merged":[]}
[]
[null,"Bebidas alcohólicas",null,null,"Combustibles fosiles",null,null,"Plaguicidas",null,null,"Alimentos con alta densidad calórica",null,null,"Combustibles automotrices"]
[]
[null,"Clave","Descripción",null,"Clave","Descripción",null,"Clave","Descripción",null,"Clave","Descripción",null,"Clave","Descripción"]
[null,"001","Aguardiente Abocado o Reposado",null,"002","Butano",null,"002","Categoría 3",null,"008","Alimentos preparadoa a base de cereales",null,"004","Combustibles no fósiles"]
[null,"005","Aguardiente añejo",null,"009","Carbón mineral",null,"003","Categoría 4",null,"001","Botanas",null,"003","Diésel"]
[null,"008","Aguardiente con Sabor",null,"006","Combustóleo",null,"001","Categorías 1 y 2",null,"003","Chocolate y dempas productos derivados del cacao",null,"002","Gasolina mayor o igual a 91 octanos"]
[null,"002","Aguardiente Standard (blanco u oro)",null,"008","Coque de cargón",null,"000","Sin selección",null,"006","Cremas de cacahuate y avellanas",null,"001","Gasolina menor a 91 octanos"]
[null,"023","Amaretto",null,"007","Coque petróleo",null,null,null,null,"005","Dulces de frutas y horalizas",null,"000","Sin selección"]
[null,"017","Anís",null,"005","Diesel",null,null,null,null,"007","Dulces de leche"]
[null,"012","Bacanora",null,"003","Gasolinas y gasavión",null,null,null,null,"004","Flanes y pudines"]
[null,"045","Bebidas Refrescantes",null,"010","Otros combustibles fósiles",null,null,null,null,"009","Helados, nieves y paletas de hielo"]
[null,"022","Brandy",null,"001","Propano",null,null,null,null,"002","Productos de confiter+ia"]
[null,"028","Brandy Reserva",null,"000","Sin selección",null,null,null,null,"000","Sin Selección"]
[null,"033","Brandy Solera",null,"004","Turbosina y otros kerosenos"]
[null,"037","Calvados"]
[null,"044","Cerveza"]
[null,"003","Charanda"]
[null,"009","Cocteles"]
[null,"039","Cognac V.S."]
[null,"042","Cognac V.S.O.P"]
[null,"043","Cognac X.O."]
[null,"013","Comiteco"]
[null,"034","Cremas base Whisky"]
[null,"018","Habanero"]
[null,"014","Lechuguilla o raicilla"]
[null,"024","Licor de Café o Cacao"]
[null,"004","Licor de hierbas regionales"]
[null,"010","Licores y Cremas hasta 20% Alc. Vol."]
[null,"025","Licores y Cremas más de 20% Al. Vol."]
[null,"015","Mezcal"]
[null,"047","Otros"]
[null,"011","Parras"]
[null,"007","Rompope"]
[null,"020","Ron"]
[null,"027","Ron Añejo"]
[null,"029","Ron con Sabor"]
[null,"030","Ron Reserva"]
[null,"000","Sin selección"]
[null,"016","Sotol"]
[null,"041","Tenessee de Luxe"]
[null,"036","Tenessee Standard"]
[null,"038","Tequila añejo 100% agave"]
[null,"021","Tequila joven o blanco"]
[null,"031","Tequila joven o blanco 100% agave"]
[null,"032","Tequila reposado 100% agave"]
[null,"026","Tequila reposado o añejo"]
[null,"046","Vinos de mesa"]
[null,"019","Vodka"]
[null,"035","Whisky o Whiskey, Borbon o Bourbon"]
[null,"040","Whisky o Whiskey, Borbon o Bourbon"]

{"sheet":"PAISO","index":15,"n_rows":244,"n_cols":9,"rows_kept":244,"cut":false,"hidden":false,"merged":[]}
[]
[null,"País de origen"]
[null,null,null,null,null," Campo: 6"]
[null,"Valor","Descripción",null,null," Descripción: ","Empresa tabacalera"]
[null,"XXX","      SIN SELECCIÓN",null,null," Dato obligatorio "]
[null,"AFG","AFGANISTAN (EMIRATO ISLAMICO DE)",null,null," Valores permitidos: "]
[null,"ALB","ALBANIA (REPUBLICA DE)",null,null,null,"Valor",null,"Descripción"]
[null,"DEU","ALEMANIA (REPUBLICA FEDERAL DE)",null,null,null,"-------",null,"--------------"]
[null,"AND","ANDORRA (PRINCIPADO DE)",null,null,null,0,null,"Sin selección"]
[null,"AGO","ANGOLA (REPUBLICA DE)",null,null,null,1,null,"BRITISH AMERICAN TOBACCO MÉXICO, S.A. DE C.V., R.F.C. BAT910607F43"]
[null,"AIA","ANGUILA",null,null,null,2,null,"CIGARROS LA TABACALERA MEXICANA, S.A. DE C.V., R.F.C. CTM760420P26"]
[null,"ATG","ANTIGUA Y BARBUDA (COMUNIDAD BRITANICA DE NACIONES)",null,null,null,4,null,"CASA AUTREY, S.A. DE C.V., R.F.C. CAU801002699"]
[null,"ANT","ANTILLAS NEERLANDESAS (TERRITORIO HOLANDES DE ULTRAMAR)",null,null,null,6,null,"NUEVA MATACAPAN TABACOS, S.A. DE C.V., R.F.C NMT920818519"]
[null,"SAU","ARABIA SAUDITA (REINO DE)",null,null,null,7,null,"TABACOS IMPORTADOS DE ALTA CALIDAD S.A. DE C.V., R.F.C. TIA960503CN5"]
[null,"DZA","ARGELIA (REPUBLICA DEMOCRATICA Y POPULAR DE)",null,null,null,8,null,"PUROS SANTA CLARA, S.A. DE C.V., R.F.C. PSC9607267W5"]
[null,"ARG","ARGENTINA (REPUBLICA)",null,null,null,9,null,"LIEB INTERNACIONAL, S.A. DE C.V., R.F.C. LIN910603L62"]
[null,"ARM","ARMENIA (REPUBLICA DE)",null,null,null,10,null,"TABACALERA VERACRUZANA, S.A., R.F.C. TVE690530MJ9"]
[null,"ABW","ARUBA (TERRITORIO HOLANDES DE ULTRAMAR)",null,null,null,11,null,"TABACOS SAN ANDRÉS, S.A. DE C.V., R.F.C. TSA860710IB4"]
[null,"AUS","AUSTRALIA (COMUNIDAD DE)",null,null,null,12,null,"TABACOS LA VICTORIA, S.A. DE C.V., R.F.C. TVI9609235F5"]
[null,"AUT","AUSTRIA (REPUBLICA DE)",null,null,null,13,null,"DISTRIBUCIONES CARIBE MAYA, S.A. DE C.V., R.F.C. DCM970626T95"]
[null,"AZE","AZERBAIJAN (REPUBLICA AZERBAIJANI)",null,null,null,14,null,"GRUPO PERMI, S.A. DE C.V., R.F.C. GPE9802189V2"]
[null,"BHS","BAHAMAS (COMUNIDAD DE LAS)",null,null,null,15,null,"MARCAS Y SERVICIOS INTERNACIONALES DE MEXICO, S.A. DE C.V., R.F.C. MSI9911022P9"]
[null,"BHR","BAHREIN (ESTADO DE)",null,null,null,16,null,"SWEDISH MATCH DE MEXICO, S.A. DE C.V., R.F.C. SMM980203QX8"]
[null,"BGD","BANGLADESH (REPUBLICA POPULAR DE)",null,null,null,17,null,"VALLEMONOS TABACOS, S.A. DE C.V., R.F.C. VMT990804ID8"]
[null,"BRB","BARBADOS (COMUNIDAD BRITANICA DE NACIONES)",null,null,null,18,null,"TABACOS ALFEREZ, S.A. DE C.V., R.F.C. TAL990928MT4"]
[null,"BEL","BELGICA (REINO DE)",null,null,null,19,null,"TABACALERA FLORFINA, S.A. DE C.V., R.F.C. FLO990517960"]
[null,"BLZ","BELICE",null,null,null,20,null,"IMPORTADORA Y EXPORTADORA DE PUROS Y TABACOS, S.A. DE C.V., R.F.C. IEP911010UG5"]
[null,"BEN","BENIN (REPUBLICA DE)",null,null,null,21,null,"COMPAÑÍA LATINOAMERICANA DE COMERCIO, S.A. DE C.V., R.F.C. LCO950210RB5"]
[null,"BMU","BERMUDAS",null,null,null,22,null,"JOSÉ OLIVER MARTÍNEZ HERNÁNDEZ, R.F.C. MAHO741022TI0"]
[null,"BLR","BIELORRUSIA (REPUBLICA DE)",null,null,null,23,null,"MARIO ACOSTA AGUILAR, R.F.C. AOAM650517368"]
[null,"BOL","BOLIVIA (REPUBLICA DE)",null,null,null,24,null,"MARIA DE LA LUZ DE LA FUENTE CAMARENA , R.F.C. FUCL6504129L2"]
[null,"BIH","BOSNIA Y HERZEGOVINA",null,null,null,25,null,"JACKSONVILLE U.S. BRANDS, S.A. DE C.V., R.F.C. JUB020910K11"]
[null,"BWA","BOTSWANA (REPUBLICA DE)",null,null,null,26,null,"CIROOMEX, S.A. DE C.V., R.F.C. CIR030513K84"]
[null,"BRA","BRASIL (REPUBLICA FEDERATIVA DE)",null,null,null,27,null,"FÁBRICA DE PUROS VALLE DE MÉXICO, S.A. DE C.V., R.F.C. FPV710707NQ9"]
[null,"BRN","BRUNEI (ESTADO DE) (RESIDENCIA DE PAZ)",null,null,null,28,null,"FRAGANCIAS ESENCIALES, S.A. DE C.V. , R.F.C. FES970704EY7"]
[null,"BGR","BULGARIA (REPUBLICA DE)",null,null,null,29,null,"CORPORACION DE EXPORTACIONES MEXICANAS, S.A. DE C.V., R.F.C. CEM880523SC0"]
[null,"BFA","BURKINA FASO",null,null,null,30,null,"COMERCIAL TARGA, S.A. DE C.V., R.F.C. CTA840526JN5"]
[null,"BDI","BURUNDI (REPUBLICA DE)",null,null,null,31,null,"DOMADI, S. DE R.L. DE C.V., R.F.C. DOM0303063X1"]
[null,"BTN","BUTAN (REINO DE)",null,null,null,32,null,"PHILIP MORRIS MEXICO PRODUCTOS Y SERVICIOS, S. DE R.L. DE C.V., R.F.C. SCP970811NE6"]
[null,"CPV","CABO VERDE (REPUBLICA DE)",null,null,null,33,null,"NEW CENTURY TOBACCO MEXICO S.A. DE C.V., R.F.C. NCT0609151V3"]
[null,"CYM","CAIMAN (ISLAS)",null,null,null,34,null,"MANUFACTURAS TRADICIONALES DE TABACO S.A. DE C.V., R.F.C. MTT981104MG5"]
[null,"KHM","CAMBOYA (REINO DE)",null,null,null,35,null,"GESTIÓN INTERNACIONAL DE MÉXICO S. DE R.L. DE C.V., R.F.C. GIM030523KV7"]
[null,"CMR","CAMERUN (REPUBLICA DEL)",null,null,null,36,null,"PUROS Y TABACOS DON CHEPO Y SUCESORES, S.A. DE C.V., R.F.C. PTD971118J42"]
[null,"CAN","CANADA",null,null,null,37,null,"PAOLINT, S.A. DE C.V., R.F.C. PAO100714DA3"]
[null,"RKE","CANAL, ISLAS DEL (ISLAS NORMANDAS)",null,null,null,38,null,"TABACOS INDUSTRIALES, S.A., RFC TIN660816F70"]
[null,"TCD","CHAD (REPUBLICA DEL)",null,null,null,39,null,"CAVA MAGNA, S.A. DE C.V., R.F.C. CMA070226UK8"]
[null,"CHL","CHILE (REPUBLICA DE)",null,null,null,40,null,"CECOREX, S.A. DE C.V.,  R.F.C.CEC101213DI4"]
[null,"CHN","CHINA (REPUBLICA POPULAR)",null,null,null,41,null,"BUENA VISTA TOBACCO FACTORY, S.A. DE C.V., R.F.C. BVT100326V16"]
[null,"CYP","CHIPRE (REPUBLICA DE)",null,null,null,42,null,"TABACOS MAGNOS, S.A DE C.V., R.F.C. TMA090904PN3"]
[null,"CIA","CIUDAD DEL VATICANO (ESTADO DE LA)",null,null,null,43,null,"JAPAN TOBACCO INTERNATIONAL MEXICO, S. DE R.L. DE C.V. R.F.C. JTI0711305X0"]
[null,"CCK","COCOS (KEELING, ISLAS AUSTRALIANAS)",null,null,null,44,null,"MONTEPAZ MEXICO, S.A. DE C.V.,  R.F.C. MME090512TS7"]
[null,"COL","COLOMBIA (REPUBLICA DE)",null,null,null,45,null,"BURLEY & VIRGINIA TABACO COMPANY, S.A DE C.V., R.F.C. BAV090610GR5"]
[null,"COM","COMORAS (ISLAS)",null,null,null,46,null,"TABACOS DOMINICANOS, S.A DE C.V., R.F.C. TDO061020QJ1"]
[null,"EMU","COMUNIDAD EUROPEA",null,null,null,47,null,"LWGN COMERCIO INTERNACIONAL, S.A DE C.V., R.F.C. LCI1206292E2"]
[null,"COG","CONGO (REPUBLICA DEL)",null,null,null,48,null," COMPAÑÍA LATINOAMERICANA, S.A. DE C.V., R.F.C. LAT0212053X1"]
[null,"COK","COOK (ISLAS)",null,null,null,49,null,"TABACO CANADIENSE, S.A. DE C.V., R.F.C. TCA061124NR2"]
[null,"KOR","COREA (REPUBLICA DE) (COREA DEL SUR)",null,null,null,50,null,"VOGA FIVE, S.A. DE C.V., R.F.C. VFI120227J43"]
[null,"PRK","COREA (REPUBLICA POPULAR DEMOCRATICA DE) (COREA DEL NORTE)",null,null,null,51,null,"MEX-KO DE SINALOA, S.A. DE C.V., R.F.C.  MSI1302237D6"]
[null,"CIV","COSTA DE MARFIL (REPUBLICA DE LA)",null,null,null,52,null,"IMPORTER OF PREMIUM CIGARETTES, S.A. DE C.V. R.F.C. IPC1302134G1"]
[null,"CRI","COSTA RICA (REPUBLICA DE)",null,null,null,53,null,"BRAXICO MANUFACTURING, S.A. DE C.V., R.F.C. BMA101208LHA"]
[null,"HRV","CROACIA (REPUBLICA DE)",null,null,null,54,null,"IMPORTACIONES OLHEVA, S.A. DE C.V. R.F.C. IOL1111183Y3"]
[null,"CUB","CUBA (REPUBLICA DE)",null,null,null,55,null,"JIHE OVERSEAS, S.A. DE C.V., R.F.C. JOV1411077E6"]
[null,"CUR","CURAZAO (TERRITORIO HOLANDES DE ULTRAMAR)",null,null,null,56,null,"IMPORTADORA GAADSO, S.A. DE C.V.,  R.F.C. IGA170616A35"]
[null,"DNK","DINAMARCA (REINO DE)",null,null,null,57,null,"US TOBACCO DE MÉXICO S.A. DE C.V., R.F.C. UTM110712GD2"]
[null,"DJI","DJIBOUTI (REPUBLICA DE)",null,null,null,58,null,"ROLO INTERNATIONAL TOBACCO, S.A. DE C.V., R.F.C. RIT170810ES7"]
[null,"DMA","DOMINICA (COMUNIDAD DE)",null,null,null,59,null,"CIMOGA INTEGRAL, S.A. DE C.V., R.F.C. CIN180428JT0"]
[null,"ECU","ECUADOR (REPUBLICA DEL)",null,null,null,60,null,"AMARIS TOBACCO, S.A. DE C.V., R.F.C. ATO970124EA7"]
[null,"EGY","EGIPTO (REPUBLICA ARABE DE)",null,null,null,61,null,"GRUPO GEOESTRATÉGICO KORMEX, S.A DE C.V., R.F.C. GGK190626E52"]
[null,"SLV","EL SALVADOR (REPUBLICA DE)",null,null,null,62,null,"IMPORTADORA CUESTA REY, S.A DE C.V., R.F.C. ICR130508B30"]
[null,"ARE","EMIRATOS ARABES UNIDOS",null,null,null,63,null,"CANTOBACCO, S.A. DE C.V., R.F.C. CAN1403135W0"]
[null,"ERI","ERITREA (ESTADO DE)",null,null,null,64,null,"VITOLAS DEL CARIBE, S.A. DE C.V., R.F.C. VCA120419GJ3"]
[null,"SVN","ESLOVENIA (REPUBLICA DE)",null,null,null,65,null,"PROYECTO MVM, S.A. DE C.V., R.F.C. PMV130218LK0"]
[null,"ESP","ESPAÑA (REINO DE)",null,null,null,66,null,"SIJARA INTERNATIONAL MANUFACTURING, S.A. DE C.V., R.F.C. SIM170626T10"]
[null,"DSM","ESTADO FEDERADO DE MICRONESIA",null,null,null,67,null,"CODEX IMPORTER TOBACCO, S.A. DE C.V., R.F.C. CIT160219U48"]
[null,"USA","ESTADOS UNIDOS DE AMERICA",null,null,null,68,null,"SIKAR GLOBAL DISTRIBUTION EXPERTS, S. DE R.L. DE C.V.  R.F.C. SGD2001295NA"]
[null,"EST","ESTONIA (REPUBLICA DE)",null,null,null,69,null,"DISTRIBUIDORA Y TABACALERA GARLESS, S. DE R.L. DE C.V.  R.F.C. DTG2004068R3"]
[null,"ETH","ETIOPIA (REPUBLICA DEMOCRATICA FEDERAL)",null,null,null,70,null,"TABAPPAR, S.P.R. DE R.L. R.F.C. TAB051027637"]
[null,"FJI","FIDJI (REPUBLICA DE)",null,null,null,71,null,"HIKURI IMPORTS, S.A. DE C.V. R.F.C. HIM120619CF5"]
[null,"PHL","FILIPINAS (REPUBLICA DE LAS)",null,null,null,72,null,"VITOLAS DEL MUNDO, S.A. DE C.V., R.F.C. VMU191004IX7"]
[null,"FIN","FINLANDIA (REPUBLICA DE)",null,null,null,73,null,"DISTRIBUIDORA Y COMERCIALIZADORA PLATINIUM, S.A. DE C.V. R.F.C. DCP2008247D9"]
[null,"FRA","FRANCIA (REPUBLICA FRANCESA)",null,null,null,74,null,"TABACO ORGANICO MEXICANO, S.A.P.I. DE C.V.  R.F.C. TOM200318FS6"]
[null,"GZA","FRANJA DE GAZA",null,null,null,75,null,"RC BESTECH DE MÉXICO, S. de R.L. de C.V. R.F.C. RBM140502KXA"]
[null,"GAB","GABONESA (REPUBLICA)",null,null,null,76,null,"TRANSFORMADORA EL SARDINERO, S.A. de C.V. R.F.C. PPR140828RC8"]
[null,"GMB","GAMBIA (REPUBLICA DE LA)",null,null,null,77,null,"YAQUI TRIBE COMPANY, S.A.S. DE C.V.  R.F.C. YTR220624IRA"]
[null,"GEO","GEORGIA (REPUBLICA DE)",null,null,null,78,null,"CIGATAUSAMEX S.A. DE C.V.  R.F.C. CIG210527NL0"]
[null,"GHA","GHANA (REPUBLICA DE)",null,null,"SÓLO EN CASO DE TABACOS LABRADOS Y OTROS PRODUCTOS QUE CONTENGAN NICOTINA (ESTE ÚLTIMO VIGENTE A PARTIR DE 2026)"]
[null,"GIB","GIBRALTAR (R.U.)"]
[null,"GRD","GRANADA"]
[null,"GRC","GRECIA (REPUBLICA HELENICA)"]
[null,"GRL","GROENLANDIA (DINAMARCA)"]
[null,"GLP","GUADALUPE (DEPARTAMENTO DE)"]
[null,"GUM","GUAM (E.U.A.)"]
[null,"GTM","GUATEMALA (REPUBLICA DE)"]
[null,"GIN","GUINEA (REPUBLICA DE)"]
[null,"GNQ","GUINEA ECUATORIAL (REPUBLICA DE)"]
[null,"GNB","GUINEA-BISSAU (REPUBLICA DE)"]
[null,"GUY","GUYANA (REPUBLICA COOPERATIVA DE)"]
[null,"GUF","GUYANA FRANCESA"]
[null,"HTI","HAITI (REPUBLICA DE)"]
[null,"HND","HONDURAS (REPUBLICA DE)"]
[null,"HKG","HONG KONG (REGION ADMINISTRATIVA ESPECIAL DE LA REPUBLICA)"]
[null,"HUN","HUNGRIA (REPUBLICA DE)"]
[null,"IND","INDIA (REPUBLICA DE)"]
[null,"IDN","INDONESIA (REPUBLICA DE)"]
[null,"IRQ","IRAK (REPUBLICA DE)"]
[null,"IRN","IRAN (REPUBLICA ISLAMICA DEL)"]
[null,"IRL","IRLANDA (REPUBLICA DE)"]
[null,"ISL","ISLANDIA (REPUBLICA DE)"]
[null,"LHM","ISLAS HEARD Y MCDONALD"]
[null,"FLK","ISLAS MALVINAS (R.U.)"]
[null,"MNP","ISLAS MARIANAS SEPTENTRIONALES"]
[null,"MHL","ISLAS MARSHALL"]
[null,"SLB","ISLAS SALOMON (COMUNIDAD BRITANICA DE NACIONES)"]
[null,"SJM","ISLAS SVALBARD Y JAN MAYEN (NORUEGA)"]
[null,"TKL","ISLAS TOKELAU"]
[null,"WLF","ISLAS WALLIS Y FUTUNA"]
[null,"ISR","ISRAEL (ESTADO DE)"]
[null,"ITA","ITALIA (REPUBLICA ITALIANA)"]
[null,"JAM","JAMAICA"]
[null,"JPN","JAPON"]
[null,"JOR","JORDANIA (REINO HACHEMITA DE)"]
[null,"KAZ","KAZAKHSTAN (REPUBLICA DE) "]
[null,"KEN","KENYA (REPUBLICA DE)"]
[null,"KIR","KIRIBATI (REPUBLICA DE)"]
[null,"KWT","KUWAIT (ESTADO DE)"]
[null,"KGZ","KYRGYZSTAN (REPUBLICA KIRGYZIA)"]
[null,"LSO","LESOTHO (REINO DE)"]
[null,"LVA","LETONIA (REPUBLICA DE)"]
[null,"LBN","LIBANO (REPUBLICA DE)"]
[null,"LBR","LIBERIA (REPUBLICA DE)"]
[null,"LBY","LIBIA (JAMAHIRIYA LIBIA ARABE POPULAR SOCIALISTA)"]
[null,"LIE","LIECHTENSTEIN (PRINCIPADO DE)"]
[null,"LTU","LITUANIA (REPUBLICA DE)"]
[null,"LUX","LUXEMBURGO (GRAN DUCADO DE)"]
[null,"MAC","MACAO"]
[null,"MKD","MACEDONIA (ANTIGUA REPUBLICA YUGOSLAVA DE)"]
[null,"MDG","MADAGASCAR (REPUBLICA DE)"]
[null,"MYS","MALASIA"]
[null,"MWI","MALAWI (REPUBLICA DE)"]
[null,"MDV","MALDIVAS (REPUBLICA DE)"]
[null,"MLI","MALI (REPUBLICA DE)"]
[null,"MLT","MALTA (REPUBLICA DE)"]
[null,"MAR","MARRUECOS (REINO DE)"]
[null,"MTQ","MARTINICA (DEPARTAMENTO DE) (FRANCIA)"]
[null,"MUS","MAURICIO (REPUBLICA DE)"]
[null,"MRT","MAURITANIA (REPUBLICA ISLAMICA DE)"]
[null,"MEX","MEXICO (ESTADOS UNIDOS MEXICANOS)"]
[null,"MDA","MOLDAVIA (REPUBLICA DE)"]
[null,"MCO","MONACO (PRINCIPADO DE)"]
[null,"MNG","MONGOLIA"]
[null,"MSR","MONSERRAT (ISLA)"]
[null,"MOZ","MOZAMBIQUE (REPUBLICA DE)"]
[null,"MMR","MYANMAR (UNION DE)"]
[null,"NAM","NAMIBIA (REPUBLICA DE)"]
[null,"NRU","NAURU"]
[null,"CXI","NAVIDAD (CHRISTMAS) (ISLAS)"]
[null,"NPL","NEPAL (REINO DE)"]
[null,"NIC","NICARAGUA (REPUBLICA DE)"]
[null,"NER","NIGER (REPUBLICA DE)"]
[null,"NGA","NIGERIA (REPUBLICA FEDERAL DE)"]
[null,"NIU","NIVE (ISLA)"]
[null,"NFK","NORFOLK (ISLA)"]
[null,"NOR","NORUEGA (REINO DE)"]
[null,"NCL","NUEVA CALEDONIA (TERRITORIO FRANCES DE ULTRAMAR)"]
[null,"NZL","NUEVA ZELANDIA"]
[null,"OMN","OMAN (SULTANATO DE)"]
[null,"PIK","PACIFICO, ISLAS DEL (ADMON. E.U.A.)"]
[null,"ZYA","PAISES BAJOS (REINO DE LOS) (HOLANDA)"]
[null,"KCD","PAISES NO DECLARADOS"]
[null,"PAK","PAKISTAN (REPUBLICA ISLAMICA DE)"]
[null,"PLW","PALAU (REPUBLICA DE)"]
[null,"PAN","PANAMA (REPUBLICA DE)"]
[null,"PNG","PAPUA NUEVA GUINEA (ESTADO INDEPENDIENTE DE)"]
[null,"PRY","PARAGUAY (REPUBLICA DEL)"]
[null,"PER","PERU (REPUBLICA DEL)"]
[null,"PCN","PITCAIRNS (ISLAS DEPENDENCIA BRITANICA)"]
[null,"PYF","POLINESIA FRANCESA"]
[null,"POL","POLONIA (REPUBLICA DE)"]
[null,"PRT","PORTUGAL (REPUBLICA PORTUGUESA)"]
[null,"PRI","PUERTO RICO (ESTADO LIBRE ASOCIADO DE LA COMUNIDAD DE)"]
[null,"QAT","QATAR (ESTADO DE)"]
[null,"GBR","REINO UNIDO DE LA GRAN BRETAÑA E IRLANDA DEL NORTE"]
[null,"CAF","REPUBLICA CENTROAFRICANA"]
[null,"CZE","REPUBLICA CHECA"]
[null,"LAO","REPUBLICA DEMOCRATICA POPULAR LAOS"]
[null,"DOM","REPUBLICA DOMINICANA"]
[null,"SVK","REPUBLICA ESLOVACA"]
[null,"COD","REPUBLICA POPULAR DEL CONGO"]
[null,"RWA","REPUBLICA RUANDESA"]
[null,"REU","REUNION (DEPARTAMENTO DE LA) (FRANCIA)"]
[null,"ROM","RUMANIA"]
[null,"RUS","RUSIA (FEDERACION RUSA)"]
[null,"ESH","SAHARA OCCIDENTAL (REPUBLICA ARABE SAHARAVI DEMOCRATICA)"]
[null,"WSM","SAMOA (ESTADO INDEPENDIENTE DE)"]
[null,"KNA","SAN CRISTOBAL Y NIEVES (FEDERACION DE) (SAN KITTS-NEVIS)"]
[null,"SMR","SAN MARINO (SERENISIMA REPUBLICA DE)"]
[null,"SPM","SAN PEDRO Y MIQUELON"]
[null,"VCT","SAN VICENTE Y LAS GRANADINAS"]
[null,"SHN","SANTA ELENA"]
[null,"LCA","SANTA LUCIA"]
[null,"STP","SANTO TOME Y PRINCIPE (REPUBLICA DEMOCRATICA DE)"]
[null,"SEN","SENEGAL (REPUBLICA DEL)"]
[null,"SYC","SEYCHELLES (REPUBLICA DE LAS)"]
[null,"SLE","SIERRA LEONA (REPUBLICA DE)"]
[null,"SGP","SINGAPUR (REPUBLICA DE)"]
[null,"SYR","SIRIA (REPUBLICA ARABE)"]
[null,"SOM","SOMALIA"]
[null,"LKA","SRI LANKA (REPUBLICA DEMOCRATICA SOCIALISTA DE)"]
[null,"ZAF","SUDAFRICA (REPUBLICA DE)"]
[null,"SDN","SUDAN (REPUBLICA DEL)"]
[null,"SWE","SUECIA (REINO DE)"]
[null,"CHE","SUIZA (CONFEDERACION)"]
[null,"SUR","SURINAME (REPUBLICA DE)"]
[null,"SWZ","SWAZILANDIA (REINO DE)"]
[null,"TJK","TADJIKISTAN (REPUBLICA DE)"]
[null,"THA","TAILANDIA (REINO DE)"]
[null,"TWN","TAIWAN (REPUBLICA DE CHINA)"]
[null,"TZA","TANZANIA (REPUBLICA UNIDA DE)"]
[null,"XCH","TERRITORIOS BRITANICOS DEL OCEANO INDICO"]
[null,"FXA","TERRITORIOS FRANCESES, AUSTRALES Y ANTARTICOS"]
[null,"TMP","TIMOR ORIENTAL"]
[null,"TGO","TOGO (REPUBLICA TOGOLESA)"]
[null,"TON","TONGA (REINO DE)"]
[null,"TTO","TRINIDAD Y TOBAGO (REPUBLICA DE)"]
[null,"TUN","TUNEZ (REPUBLICA DE)"]
[null,"TCA","TURCAS Y CAICOS (ISLAS)"]
[null,"TKM","TURKMENISTAN (REPUBLICA DE)"]
[null,"TUR","TURQUIA (REPUBLICA DE)"]
[null,"TUV","TUVALU (COMUNIDAD BRITANICA DE NACIONES)"]
[null,"UKR","UCRANIA"]
[null,"UGA","UGANDA (REPUBLICA DE)"]
[null,"URY","URUGUAY (REPUBLICA ORIENTAL DEL)"]
[null,"UZB","UZBEJISTAN (REPUBLICA DE)"]
[null,"VUT","VANUATU"]
[null,"VEN","VENEZUELA (REPUBLICA DE)"]
[null,"VNM","VIETNAM (REPUBLICA SOCIALISTA DE)"]
[null,"VGB","VIRGENES. ISLAS (BRITANICAS)"]
[null,"VIR","VIRGENES. ISLAS (NORTEAMERICANAS)"]
[null,"YEM","YEMEN (REPUBLICA DE)"]
[null,"YUG","YUGOSLAVIA (REPUBLICA FEDERAL DE)"]
[null,"ZMB","ZAMBIA (REPUBLICA DE)"]
[null,"ZWE","ZIMBABWE (REPUBLICA DE)"]
[null,"PTY","ZONA DEL CANAL DE PANAMA"]
[null,"RUH","ZONA NEUTRAL IRAQ-ARABIA SAUDITA"]

{"sheet":"CODIGO","index":16,"n_rows":36,"n_cols":4,"rows_kept":36,"cut":false,"hidden":false,"merged":[]}
[]
[]
[null,"Inicial","Final","Estado"]
[null,20000,20997,"   01  Aguascalientes"]
[null,21000,22997,"   02  Baja California"]
[null,23000,23997,"   03  Baja California Sur"]
[null,24000,24940,"   04  Campeche"]
[null,25000,27997,"   05  Coahuila"]
[null,28000,28989,"   06  Colima"]
[null,29000,30997,"   07  Chiapas"]
[null,31000,33997,"   08  Chihuahua"]
[null,"01000",16900,"   09  Distrito Federal"]
[null,34000,35987,"   10  Durango"]
[null,36000,38997,"   11  Guanajuato"]
[null,39000,41998,"   12  Guerrero"]
[null,42000,43998,"   13  Hidalgo"]
[null,44100,49996,"   14  Jalisco"]
[null,50000,57950,"   15  Estado de México"]
[null,58000,61998,"   16  Michoacán"]
[null,62000,62996,"   17  Morelos"]
[null,63000,63996,"   18  Nayarit"]
[null,64000,67996,"   19  Nuevo León"]
[null,68000,71998,"   20  Oaxaca"]
[null,72000,75997,"   21  Puebla"]
[null,76000,76998,"   22  Querétaro"]
[null,77000,77997,"   23  Quintana Roo"]
[null,78000,79998,"   24  San Luis Potosí"]
[null,80000,82996,"   25  Sinaloa"]
[null,83000,85994,"   26  Sonora"]
[null,86000,86998,"   27  Tabasco"]
[null,87000,89970,"   28  Tamaulipas"]
[null,90000,90990,"   29  Tlaxcala"]
[null,91000,96998,"   30  Veracruz"]
[null,97000,97990,"   31  Yucatán"]
[null,98000,99998,"   32  Zacatecas"]
[null,null,null,"   33  Extranjeros"]

{"sheet":"GENERALES","index":17,"n_rows":23,"n_cols":5,"rows_kept":23,"cut":false,"hidden":true,"merged":[]}
[]
[]
[]
[null,"Trimestre","Año"]
[null,"Enero-Marzo",2022,null,"Enero"]
[null,"Abirl-Junio",2023,null,"Febrero"]
[null,"Julio-Septiembre",2024,null,"Marzo"]
[null,"Octubre-Diciembre",2025,null,"Abril"]
[null,"Enero-Junio",2026,null,"Mayo"]
[null,"Julio-Diciembre",null,null,"Junio"]
[null,null,null,null,"Julio"]
[null,null,null,null,"Agosto"]
[null,null,null,null,"Septiembre"]
[null,null,null,null,"Octubre"]
[null,null,null,null,"Noviembre"]
[null,null,null,null,"Diciembre"]
[]
[]
[]
[]
[null,"VNUMERO = Range(\"BB\" & A) & \"|\" & Range(\"BC\" & A) & \"|\" & Range(\"BD\" & A) & \"|\" & Range(\"BE\" & A) & \"|\" & Range(\"BF\" & A) & \"|\" & Range(\"BG\" & A) & \"|\" & _"]
[null,"    Range(\"BH\" & A) & \"|\" & Range(\"BI\" & A) & \"|\" & Range(\"BJ\" & A) & \"|\" & Range(\"BK\" & A) & \"|\" & Range(\"BL\" & A) & \"|\" & Range(\"BM\" & A) & Range(\"BN\" & A) & Range(\"BO\" & A) & Range(\"BP\" & A) _"]
[null,"    & Range(\"BQ\" & A) & Range(\"BR\" & A)& Range(\"BS\" & A)& Range(\"BT\" & A)& Range(\"BU\" & A)& Range(\"BV\" & A)& Range(\"BW\" & A)& Range(\"BX\" & A)& Range(\"BY\" & A)& Range(\"BZ\" & A) _"]